{"text_format":"2","workbook":"xlsx","n_sheets":4,"sheets":["Химия 8","Химия 9","Химия 10","Химия 11"],"not_rendered":{"charts":0,"images":0,"macros":0,"external_links":0,"defined_names":4,"comments":0,"pivot_tables":0},"unopened":[],"bounds":{"document_bytes":16777216,"sheet_cells":100000,"run_cost":"one","rows_first":2000,"rows_last":500,"rows_between":2000,"halvings":0,"cell_chars":16384,"cell_head_chars":4096},"cells_cut":0,"cells_raw":0,"read":"whole","date_system":"1900"}

{"sheet":"Химия 8","index":0,"n_rows":175,"n_cols":11,"rows_kept":175,"cut":false,"hidden":false,"merged":[[2,0,2,1]]}
[null,null,null,"Итоговый протокол результатов школьного этапа Олимпиады по  ХИМИИ 8 класс"]
[]
["максимальный балл ",null,50]
["№ п/п","Муниципалитет","Шифр (код) выданный ребенку","класс обучается","класс выступает","ОО, в которой обучается (полное название по УСТАВУ)","Количество набранных баллов","Статус","Победитель/призер МЭ 2020-2021 (статус)*","ФИО учителя (наставника)","ФИО учителя (наставника)**"]
[1,"Московский","sch2272/edu520807/8/56q7v9",8,8,"Муниципальное автономное общеобразовательное учреждение \"Школа №118 с углубленным изучением отдельных предметов\"",43,"Победитель",null,"Смирнов Роман Николаевич"]
[2,"Московский","sch2272/edu520727/8/zg6q58",8,8,"Муниципальное автономное  общеобразовательное учреждение \"Школа № 149\"",34,"Победитель",null,"Венецкий Дмитрий Владимирович"]
[3,"Московский","sch2272/edu523547/8/gwr847",8,8,"Муниципальное автономное  общеобразовательное учреждение \"Школа № 172\"",34,"Победитель",null,"Додина Надежда Леонидовна"]
[4,"Московский","sch2272/edu520732/8/469z5g",8,8,"Муниципальное автономное  общеобразовательное учреждение \"Гимназия №67\"",33,"Победитель",null,"Клокова Татьяна Александровна"]
[5,"Московский","sch2272/edu520807/8/5vr3q5",8,8,"Муниципальное автономное общеобразовательное учреждение \"Школа №118 с углубленным изучением отдельных предметов\"",33,"Победитель"," ","Смирнов Роман Николаевич"]
[6,"Московский","sch2272/edu520733/8/49gr54",8,8,"Муниципальное бюджетное общеобразовательное учреждение \"Лицей № 87 имени Л.И.Новиковой\"",32.5,"призер",null,"Сизова Алла Евгеньевна"]
[7,"Московский","sch2272/edu523547/8/744957",8,8,"Муниципальное автономное  общеобразовательное учреждение \"Школа № 172\"",32.5,"призер",null,"Додина Надежда Леонидовна"]
[8,"Московский","sch2272/edu520730/8/zv94w8",8,8,"муниципальное автономное  общеобразовательное учреждение \"Школа № 70 с углубленным изучением отдельных предметов\"",31.5,"призер",null,"Артюшина Елена Александровна"]
[9,"Московский","sch2272/edu520729/8/8vg4g5",8,8,"Муниципальное автономное общеобразовательное учреждение \"Школа №178\"",31,"призер",null,"Буханова Евгения Юрьевна"]
[10,"Московский","sch2272/edu523547/8/g65qr7",8,8,"Муниципальное автономное  общеобразовательное учреждение \"Школа № 172\"",31,"призер",null,"Додина Надежда Леонидовна"]
[11,"Московский","sch2272/edu523542/8/265459",8,8,"Муниципальное бюджетное общеобразовательное учреждение \"Школа № 66\"",31,"призер",null,"Корнилова Ирина Викторовна"]
[12,"Московский","sch2272/edu520732/8/4q2zzg",8,8,"Муниципальное автономное  общеобразовательное учреждение \"Гимназия №67\"",31,"призер",null,"Клокова Татьяна Александровна"]
[13,"Московский","sch2272/edu520730/8/zg24w8",8,8,"муниципальное автономное  общеобразовательное учреждение \"Школа № 70 с углубленным изучением отдельных предметов\"",31,"призер",null,"Артюшина Елена Александровна"]
[14,"Московский","sch2272/edu520731/8/833478",8,8,"Муниципальное автономное  общеобразовательное учреждение \"Школа №74 с углубленным изучением отдельных предметов\"",30.5,"призер",null,"Тимофеева Марина Александровна"]
[15,"Московский","sch2272/edu520730/8/zv76w8",8,8,"муниципальное автономное  общеобразовательное учреждение \"Школа № 70 с углубленным изучением отдельных предметов\"",30.5,"призер",null,"Пестова Ирина Ивановна"]
[16,"Московский","sch2272/edu523542/8/9833v2",8,8,"Муниципальное бюджетное общеобразовательное учреждение \"Школа № 66\"",30.5,"призер",null,"Корнилова Ирина Викторовна"]
[17,"Московский","sch2272/edu520723/8/89673g",8,8,"Муниципальное бюджетное общеобразовательное учреждение \"Школа № 73\"",30.5,"призер",null,"Васильева Елена Валерьевна"]
[18,"Московский","sch2272/edu520732/8/grq964",8,8,"Муниципальное автономное  общеобразовательное учреждение \"Гимназия №67\"",30.5,"призер",null,"Клокова Татьяна Александровна"]
[19,"Московский","sch2272/edu523547/8/72v9v7",8,8,"Муниципальное автономное  общеобразовательное учреждение \"Школа № 172\"",30,"призер",null,"Додина Надежда Леонидовна"]
[20,"Московский","sch2272/edu520807/8/9476r5",8,8,"Муниципальное автономное общеобразовательное учреждение \"Школа №118 с углубленным изучением отдельных предметов\"",30,"призер",null,"Смирнов Роман Николаевич"]
[21,"Московский","sch2272/edu520807/8/57v389",8,8,"Муниципальное автономное общеобразовательное учреждение \"Школа №118 с углубленным изучением отдельных предметов\"",29.5,"призер",null,"Смирнов Роман Николаевич"]
[22,"Московский","sch2272/edu520731/8/v56z68",8,8,"Муниципальное автономное  общеобразовательное учреждение \"Школа №74 с углубленным изучением отдельных предметов\"",29.5,"призер",null,"Тимофеева Марина Александровна"]
[23,"Московский","sch2272/edu523542/8/24wq69",8,8,"Муниципальное бюджетное общеобразовательное учреждение \"Школа № 66\"",29.5,"призер",null,"Корнилова Ирина Викторовна"]
[24,"Московский","sch2272/edu520729/8/83r9v5",8,8,"Муниципальное автономное общеобразовательное учреждение \"Школа №178\"",29.5,"призер",null,"Буханова Евгения Юрьевна"]
[25,"Московский","sch2272/edu520733/8/zqwg3z",8,8,"Муниципальное бюджетное общеобразовательное учреждение \"Лицей № 87 имени Л.И.Новиковой\"",29.5,"призер",null,"Сизова Алла Евгеньевна"]
[26,"Московский","sch2272/edu520730/8/z5944z",8,8,"муниципальное автономное  общеобразовательное учреждение \"Школа № 70 с углубленным изучением отдельных предметов\"",29.5,"призер",null,"Артюшина Елена Александровна"]
[27,"Московский","sch2272/edu520719/8/wr636w",8,8,"Муниципальное бюджетное общеобразовательное учреждение \"Школа № 64\"",29,"призер",null,"Полежаева Элина Демидовна"]
[28,"Московский","sch2272/edu520807/8/5zg669",8,8,"Муниципальное автономное общеобразовательное учреждение \"Школа №118 с углубленным изучением отдельных предметов\"",29,"призер",null,"Смирнов Роман Николаевич"]
[29,"Московский","sch2272/edu523547/8/gzvqwg",8,8,"Муниципальное автономное  общеобразовательное учреждение \"Школа № 172\"",29,"призер",null,"Додина Надежда Леонидовна"]
[30,"Московский","sch2272/edu520731/8/827q3v",8,8,"Муниципальное автономное  общеобразовательное учреждение \"Школа №74 с углубленным изучением отдельных предметов\"",29,"призер",null,"Тимофеева Марина Александровна"]
[31,"Московский","sch2272/edu520730/8/z3573z",8,8,"муниципальное автономное  общеобразовательное учреждение \"Школа № 70 с углубленным изучением отдельных предметов\"",28.5,"призер",null,"Артюшина Елена Александровна"]
[32,"Московский","sch2272/edu520807/8/9473r5",8,8,"Муниципальное автономное общеобразовательное учреждение \"Школа №118 с углубленным изучением отдельных предметов\"",28.5,"призер",null,"Смирнов Роман Николаевич"]
[33,"Московский","sch2272/edu520723/8/g52z68",8,8,"Муниципальное бюджетное общеобразовательное учреждение \"Школа № 73\"",28.5,"призер",null,"Васильева Елена Валерьевна"]
[34,"Московский","sch2272/edu520723/8/8q29wg",8,8,"Муниципальное бюджетное общеобразовательное учреждение \"Школа № 73\"",28.5,"призер",null,"Васильева Елена Валерьевна"]
[35,"Московский","sch2272/edu520730/8/84g64z",8,8,"муниципальное автономное  общеобразовательное учреждение \"Школа № 70 с углубленным изучением отдельных предметов\"",28.5,"призер",null,"Артюшина Елена Александровна"]
[36,"Московский","sch2272/edu520727/8/zrwqv8",8,8,"Муниципальное автономное  общеобразовательное учреждение \"Школа № 149\"",28,"призер",null,"Венецкий Дмитрий Владимирович"]
[37,"Московский","sch2272/edu520729/8/83r6v5",8,8,"Муниципальное автономное общеобразовательное учреждение \"Школа №178\"",28,"призер",null,"Буханова Евгения Юрьевна"]
[38,"Московский","sch2272/edu520807/8/536gv9",8,8,"Муниципальное автономное общеобразовательное учреждение \"Школа №118 с углубленным изучением отдельных предметов\"",28,"призер",null,"Смирнов Роман Николаевич"]
[39,"Московский","sch2272/edu520727/8/82qwrz",8,8,"Муниципальное автономное  общеобразовательное учреждение \"Школа № 149\"",28,"призер",null,"Венецкий Дмитрий Владимирович"]
[40,"Московский","sch2272/edu520719/8/v9r88w",8,8,"Муниципальное бюджетное общеобразовательное учреждение \"Школа № 64\"","27.5","призер",null,"Полежаева Элина Демидовна"]
[41,"Московский","sch2272/edu520719/8/v2r8gv",8,8,"Муниципальное бюджетное общеобразовательное учреждение \"Школа № 64\"","27.5","призер",null,"Полежаева Элина Демидовна"]
[42,"Московский","sch2272/edu520729/8/8qr725",8,8,"Муниципальное автономное общеобразовательное учреждение \"Школа №178\"",27.5,"призер",null,"Буханова Евгения Юрьевна"]
[43,"Московский","sch2272/edu520807/8/58z725",8,8,"Муниципальное автономное общеобразовательное учреждение \"Школа №118 с углубленным изучением отдельных предметов\"",27,"призер",null,"Смирнов Роман Николаевич"]
[44,"Московский","sch2272/edu523547/8/72vwv7",8,8,"Муниципальное автономное  общеобразовательное учреждение \"Школа № 172\"",27,"призер",null,"Додина Надежда Леонидовна"]
[45,"Московский","sch2272/edu520730/8/84g24z",8,8,"муниципальное автономное  общеобразовательное учреждение \"Школа № 70 с углубленным изучением отдельных предметов\"",27,"призер",null,"Артюшина Елена Александровна"]
[46,"Московский","sch2272/edu520722/8/v3z7w4",8,8,"Муниципальное бюджетное общеобразовательное учреждение \"\"Школа № 69\"",27,"призер","победитель","Севирова Валентина Ильинична"]
[47,"Московский","sch2272/edu523542/8/9z37w2",8,8,"Муниципальное бюджетное общеобразовательное учреждение \"Школа № 66\"",27,"призер",null,"Корнилова Ирина Викторовна"]
[48,"Московский","sch2272/edu520727/8/z69gq8",8,8,"Муниципальное автономное  общеобразовательное учреждение \"Школа № 149\"",27,"призер",null,"Венецкий Дмитрий Владимирович"]
[49,"Московский","sch2272/edu520723/8/8v6758",8,8,"Муниципальное бюджетное общеобразовательное учреждение \"Школа № 73\"",26.5,"призер",null,"Васильева Елена Валерьевна"]
[50,"Московский","sch2272/edu520732/8/4qzw5g",8,8,"Муниципальное автономное  общеобразовательное учреждение \"Гимназия №67\"",26.5,"призер",null,"Клокова Татьяна Александровна"]
[51,"Московский","sch2272/edu523542/8/2v5539",8,8,"Муниципальное бюджетное общеобразовательное учреждение \"Школа № 66\"",26.5,"призер",null,"Корнилова Ирина Викторовна"]
[52,"Московский","sch2272/edu523547/8/75695g",8,8,"Муниципальное автономное  общеобразовательное учреждение \"Школа № 172\"",26,"участник",null,"Додина Надежда Леонидовна"]
[53,"Московский","sch2272/edu523547/8/g652r7",8,8,"Муниципальное автономное  общеобразовательное учреждение \"Школа № 172\"",26,"участник",null,"Додина Надежда Леонидовна"]
[54,"Московский","sch2272/edu523547/8/g92337",8,8,"Муниципальное автономное  общеобразовательное учреждение \"Школа № 172\"",26,"участник",null,"Додина Надежда Леонидовна"]
[55,"Московский","sch2272/edu523547/8/g359zg",8,8,"Муниципальное автономное  общеобразовательное учреждение \"Школа № 172\"",26,"участник",null,"Додина Надежда Леонидовна"]
[56,"Московский","sch2272/edu520730/8/z2vg2z",8,8,"муниципальное автономное  общеобразовательное учреждение \"Школа № 70 с углубленным изучением отдельных предметов\"",26,"участник",null,"Пестова Ирина Ивановна"]
[57,"Московский","sch2272/edu520727/8/84q54z",8,8,"Муниципальное автономное  общеобразовательное учреждение \"Школа № 149\"",25.5,"участник",null,"Венецкий Дмитрий Владимирович"]
[58,"Московский","sch2272/edu520719/8/v797gv",8,8,"Муниципальное бюджетное общеобразовательное учреждение \"Школа № 64\"",25.5,"участник",null,"Полежаева Элина Демидовна"]
[59,"Московский","sch2272/edu520807/8/5q7885",8,8,"Муниципальное автономное общеобразовательное учреждение \"Школа №118 с углубленным изучением отдельных предметов\"",25.5,"участник",null,"Смирнов Роман Николаевич"]
[60,"Московский","sch2272/edu520729/8/8vgvg5",8,8,"Муниципальное автономное общеобразовательное учреждение \"Школа №178\"",25.5,"участник",null,"Буханова Евгения Юрьевна"]
[61,"Московский","sch2272/edu520730/8/z22q2z",8,8,"муниципальное автономное  общеобразовательное учреждение \"Школа № 70 с углубленным изучением отдельных предметов\"",25.5,"участник",null,"Артюшина Елена Александровна"]
[62,"Московский","2272/edu520726/8/5wzg42",8,8,"Муниципальное автономное общеобразовательное учреждение \"Школа № 139\"",25,"участник",null,"Кривдина Елена Викторовна"]
[63,"Московский","sch2272/edu520719/8/v482gv",8,8,"Муниципальное бюджетное общеобразовательное учреждение \"Школа № 64\"",25,"участник",null,"Полежаева Элина Демидовна"]
[64,"Московский","sch2272/edu520733/8/z68rgz",7,8,"Муниципальное бюджетное общеобразовательное учреждение \"Лицей № 87 имени Л.И.Новиковой\"",25,"участник",null,"Сизова Алла Евгеньевна"]
[65,"Московский","sch2272/edu520730/8/zrrw7z",8,8,"муниципальное автономное  общеобразовательное учреждение \"Школа № 70 с углубленным изучением отдельных предметов\"",25,"участник",null,"Артюшина Елена Александровна"]
[66,"Московский","sch2272/edu520730/8/zv9vw8",8,8,"муниципальное автономное  общеобразовательное учреждение \"Школа № 70 с углубленным изучением отдельных предметов\"",25,"участник",null,"Артюшина Елена Александровна"]
[67,"Московский","sch2272/edu520730/8/8w26wz",8,8,"муниципальное автономное  общеобразовательное учреждение \"Школа № 70 с углубленным изучением отдельных предметов\"",24.5,"участник",null,"Артюшина Елена Александровна"]
[68,"Московский","sch2272/edu523547/8/gvrq3g",8,8,"Муниципальное автономное  общеобразовательное учреждение \"Школа № 172\"",24,"участник",null,"Додина Надежда Леонидовна"]
[69,"Московский","sch2272/edu520724/8/45rg9z",8,8,"Муниципальное бюджетное общеобразовательное учреждение \"Школа № 93\"",24,"участник",null,"Аверьянова Татьяна Витальевна"]
[70,"Московский","sch2272/edu520731/8/87grz8",8,8,"Муниципальное автономное  общеобразовательное учреждение \"Школа №74 с углубленным изучением отдельных предметов\"",24,"участник",null,"Тимофеева Марина Александровна"]
[71,"Московский","sch2272/edu520729/8/54rwg5",8,8,"Муниципальное автономное общеобразовательное учреждение \"Школа №178\"",24,"участник",null,"Буханова Евгения Юрьевна"]
[72,"Московский","sch2272/edu520730/8/zv92w8",8,8,"муниципальное автономное  общеобразовательное учреждение \"Школа № 70 с углубленным изучением отдельных предметов\"",24,"участник",null,"Артюшина Елена Александровна"]
[73,"Московский","sch2272/edu520730/8/8qv57z",8,8,"муниципальное автономное  общеобразовательное учреждение \"Школа № 70 с углубленным изучением отдельных предметов\"",24,"участник",null,"Артюшина Елена Александровна"]
[74,"Московский","sch2272/edu523542/8/977g39",8,8,"Муниципальное бюджетное общеобразовательное учреждение \"Школа № 66\"",23.5,"участник",null,"Корнилова Ирина Викторовна"]
[75,"Московский","sch2272/edu520807/8/5vrwq5",8,8,"Муниципальное автономное общеобразовательное учреждение \"Школа №118 с углубленным изучением отдельных предметов\"",23.5,"участник",null,"Смирнов Роман Николаевич"]
[76,"Московский","sch2272/edu520730/8/862r68",8,8,"муниципальное автономное  общеобразовательное учреждение \"Школа № 70 с углубленным изучением отдельных предметов\"",23.5,"участник",null,"Артюшина Елена Александровна"]
[77,"Московский","sch2272/edu523542/8/9r88z9",8,8,"Муниципальное бюджетное общеобразовательное учреждение \"Школа № 66\"",23,"участник",null,"Корнилова Ирина Викторовна"]
[78,"Московский","sch2272/edu520724/8/z23w94",8,8,"Муниципальное бюджетное общеобразовательное учреждение \"Школа № 93\"",23,"участник",null,"Аверьянова Татьяна Витальевна"]
[79,"Московский","sch2272/edu520724/8/zqr6v4",8,8,"Муниципальное бюджетное общеобразовательное учреждение \"Школа № 93\"",23,"участник",null,"Аверьянова Татьяна Витальевна"]
[80,"Московский","sch2272/edu520729/8/8r4v98",8,8,"Муниципальное автономное общеобразовательное учреждение \"Школа №178\"",23,"участник",null,"Буханова Евгения Юрьевна"]
[81,"Московский","sch2272/edu520732/8/g966v4",8,8,"Муниципальное автономное  общеобразовательное учреждение \"Гимназия №67\"",23,"участник",null,"Клокова Татьяна Александровна"]
[82,"Московский","sch2272/edu520724/8/4v6r74",8,8,"Муниципальное бюджетное общеобразовательное учреждение \"Школа № 93\"",22.5,"участник",null,"Аверьянова Татьяна Витальевна"]
[83,"Московский","sch2272/edu520724/8/479264",8,8,"Муниципальное бюджетное общеобразовательное учреждение \"Школа № 93\"",22.5,"участник",null,"Аверьянова Татьяна Витальевна"]
[84,"Московский","sch2272/edu520725/8/5rwv37",8,8,"Муниципальное бюджетное общеобразовательное учреждение \"Школа № 115\"",22.5,"участник",null,"Травин Михаил Евгеньевич"]
[85,"Московский","sch2272/edu523542/8/255wz2",8,8,"Муниципальное бюджетное общеобразовательное учреждение \"Школа № 66\"",22,"участник",null,"Корнилова Ирина Викторовна"]
[86,"Московский","sch2272/edu520722/8/vr6z3v",8,8,"Муниципальное бюджетное общеобразовательное учреждение \"\"Школа № 69\"",22,"участник",null,"Севирова Валентина Ильинична"]
[87,"Московский","sch2272/edu520730/8/zgqvwz",8,8,"муниципальное автономное  общеобразовательное учреждение \"Школа № 70 с углубленным изучением отдельных предметов\"",22,"участник",null,"Пестова Ирина Ивановна"]
[88,"Московский","sch2272/edu520807/8/57vw89",8,8,"Муниципальное автономное общеобразовательное учреждение \"Школа №118 с углубленным изучением отдельных предметов\"",22,"участник",null,"Смирнов Роман Николаевич"]
[89,"Московский","sch2272/edu523547/8/gr5867",8,8,"Муниципальное автономное  общеобразовательное учреждение \"Школа № 172\"",21.5,"участник",null,"Додина Надежда Леонидовна"]
[90,"Московский","sch2272/edu523542/8/2g33r2",8,8,"Муниципальное бюджетное общеобразовательное учреждение \"Школа № 66\"",21.5,"участник",null,"Корнилова Ирина Викторовна"]
[91,"Московский","sch2272/edu523542/8/93wq79",8,8,"Муниципальное бюджетное общеобразовательное учреждение \"Школа № 66\"",21.5,"участник",null,"Корнилова Ирина Викторовна"]
[92,"Московский","sch2272/edu520807/8/52g769",8,8,"Муниципальное автономное общеобразовательное учреждение \"Школа №118 с углубленным изучением отдельных предметов\"",21.5,"участник",null,"Смирнов Роман Николаевич"]
[93,"Московский","sch2272/edu520729/8/8237w5",8,8,"Муниципальное автономное общеобразовательное учреждение \"Школа №178\"",21.5,"участник",null,"Буханова Евгения Юрьевна"]
[94,"Московский","sch2272/edu520732/8/4qz55g",8,8,"Муниципальное автономное  общеобразовательное учреждение \"Гимназия №67\"",21.5,"участник",null,"Клокова Татьяна Александровна"]
[95,"Московский","sch2272/edu520722/8/429rwv",8,8,"Муниципальное бюджетное общеобразовательное учреждение \"\"Школа № 69\"",21,"участник",null,"Севирова Валентина Ильинична"]
[96,"Московский","sch2272/edu520724/8/z863wz",8,8,"Муниципальное бюджетное общеобразовательное учреждение \"Школа № 93\"",21,"участник",null,"Аверьянова Татьяна Витальевна"]
[97,"Московский","sch2272/edu520719/8/v4r9gv",8,8,"Муниципальное бюджетное общеобразовательное учреждение \"Школа № 64\"",21,"участник",null,"Полежаева Элина Демидовна"]
[98,"Московский","sch2272/edu520730/8/8qvwgz",8,8,"муниципальное автономное  общеобразовательное учреждение \"Школа № 70 с углубленным изучением отдельных предметов\"",21,"участник",null,"Пестова Ирина Ивановна"]
[99,"Московский","sch2272/edu520733/8/4v27q4",8,8,"Муниципальное бюджетное общеобразовательное учреждение \"Лицей № 87 имени Л.И.Новиковой\"",21,"участник",null,"Сизова Алла Евгеньевна"]
[100,"Московский","sch2272/edu520718/8/q87v3z",8,8,"Муниципальное бюджетное общеобразовательное учреждение \"Школа № 21\"",21,null,null,"Маструков Сергей Дмитриевич"]
[101,"Московский","sch2272/edu520727/8/8w424z",8,8,"Муниципальное автономное  общеобразовательное учреждение \"Школа № 149\"",20.5,"участник",null,"Венецкий Дмитрий Владимирович"]
[102,"Московский","sch2272/edu520719/8/w5539w",8,8,"Муниципальное бюджетное общеобразовательное учреждение \"Школа № 64\"",20.5,"участник",null,"Полежаева Элина Демидовна"]
[103,"Московский","sch2272/edu520723/8/824328",8,8,"Муниципальное бюджетное общеобразовательное учреждение \"Школа № 73\"",20.5,"участник",null,"Васильева Елена Валерьевна"]
[104,"Московский","sch2272/edu520726/8/5wz942",8,8,"Муниципальное автономное общеобразовательное учреждение МАОУ \"Школа №139\" ",20,"участник",null,"Кривдина Елена Викторовна"]
[105,"Московский","sch2272/edu520729/8/89gr28",8,8,"Муниципальное автономное общеобразовательное учреждение \"Школа №178\"",20,"участник",null,"Буханова Евгения Юрьевна"]
[106,"Московский","sch2272/edu520732/8/4w626g",8,8,"Муниципальное автономное  общеобразовательное учреждение \"Гимназия №67\"",20,"участник",null,"Клокова Татьяна Александровна"]
[107,"Московский","sch2272/edu520732/8/4wvv9g",8,8,"Муниципальное автономное  общеобразовательное учреждение \"Гимназия №67\"",20,"участник",null,"Клокова Татьяна Александровна"]
[108,"Московский","sch2272/edu523547/8/75685g",8,8,"Муниципальное автономное  общеобразовательное учреждение \"Школа № 172\"",19.5,"участник",null,"Додина Надежда Леонидовна"]
[109,"Московский","sch2272/edu520727/8/83w558",8,8,"Муниципальное автономное  общеобразовательное учреждение \"Школа № 149\"",19.5,"участник",null,"Венецкий Дмитрий Владимирович"]
[110,"Московский","sch2272/edu520729/8/5z32r8",8,8,"Муниципальное автономное общеобразовательное учреждение \"Школа №178\"",19.5,"участник",null,"Буханова Евгения Юрьевна"]
[111,"Московский","sch2272/edu520731/8/vr26gv",8,8,"Муниципальное автономное  общеобразовательное учреждение \"Школа №74 с углубленным изучением отдельных предметов\"",19,"участник",null,"Тимофеева Марина Александровна"]
[112,"Московский","sch2272/edu520726/8/5r9742",8,8,"Муниципальное автономное общеобразовательное учреждение МАОУ \"Школа №139\" ",18.5,"участник",null,"Кривдина Елена Викторовна"]
[113,"Московский","sch2272/edu520719/8/w3685v",8,8,"Муниципальное бюджетное общеобразовательное учреждение \"Школа № 64\"",18.5,"участник",null,"Полежаева Элина Демидовна"]
[114,"Московский","sch2272/edu520730/8/8w39w8",8,8,"муниципальное автономное  общеобразовательное учреждение \"Школа № 70 с углубленным изучением отдельных предметов\"",18.5,"участник",null,"Пестова Ирина Ивановна"]
[115,"Московский","sch2272/edu520727/8/z69q68",8,8,"Муниципальное автономное  общеобразовательное учреждение \"Школа № 149\"",18,"участник",null,"Венецкий Дмитрий Владимирович"]
[116,"Московский","sch2272/edu520719/8/w82gqw",8,8,"Муниципальное бюджетное общеобразовательное учреждение \"Школа № 64\"",18,"участник",null,"Полежаева Элина Демидовна"]
[117,"Московский","sch2272/edu520724/8/435224",8,8,"Муниципальное бюджетное общеобразовательное учреждение \"Школа № 93\"",17.5,"участник",null,"Аверьянова Татьяна Витальевна"]
[118,"Московский","sch2272/edu520726/8/5r9g42",8,8,"Муниципальное автономное общеобразовательное учреждение МАОУ \"Школа №139\" ",17.5,"участник",null,"Кривдина Елена Викторовна"]
[119,"Московский","sch2272/edu520733/8/z7v894",8,8,"Муниципальное бюджетное общеобразовательное учреждение \"Лицей № 87 имени Л.И.Новиковой\"",17.5,"участник",null,"Сизова Алла Евгеньевна"]
[120,"Московский","sch2272/edu526233/8/528v85",8,8,"Муниципальное бюджетное общеобразовательное учреждение \"Школа № 146\"",17.5,"участник",null,"Козляева Татьяна Михайловна"]
[121,"Московский","sch2272/edu520723/8/846vq8",8,8,"Муниципальное бюджетное общеобразовательное учреждение \"Школа № 73\"",17,"участник",null,"Васильева Елена Валерьевна"]
[122,"Московский","sch2272/edu526233/8/9w7r89",8,8,"Муниципальное бюджетное общеобразовательное учреждение \"Школа № 146\"",17,"участник",null,"Козляева Татьяна Михайловна"]
[123,"Московский","sch2272/edu520729/8/5gr378",8,8,"Муниципальное автономное общеобразовательное учреждение \"Школа №178\"",17,"участник",null,"Буханова Евгения Юрьевна"]
[124,"Московский","sch2272/edu520729/8/83rqv5",8,8,"Муниципальное автономное общеобразовательное учреждение \"Школа №178\"",17,"участник",null,"Буханова Евгения Юрьевна"]
[125,"Московский","sch2272/edu523547/8/744v57",8,8,"Муниципальное автономное  общеобразовательное учреждение \"Школа № 172\"",16.5,"участник",null,"Додина Надежда Леонидовна"]
[126,"Московский","sch2272/edu520719/8/vz6ggv",8,8,"Муниципальное бюджетное общеобразовательное учреждение \"Школа № 64\"",16.5,"участник",null,"Полежаева Элина Демидовна"]
[127,"Московский","sch2272/edu523542/8/24ww69",8,8,"Муниципальное бюджетное общеобразовательное учреждение \"Школа № 66\"",16,"участник",null,"Корнилова Ирина Викторовна"]
[128,"Московский","sch2272/edu520731/8/827q6v",8,8,"Муниципальное автономное  общеобразовательное учреждение \"Школа №74 с углубленным изучением отдельных предметов\"",16,"участник",null,"Тимофеева Марина Александровна"]
[129,"Московский","sch2272/edu520807/8/5362v9",8,8,"Муниципальное автономное общеобразовательное учреждение \"Школа №118 с углубленным изучением отдельных предметов\"",16,"участник",null,"Смирнов Роман Николаевич"]
[130,"Московский","sch2272/edu520807/8/5vr7q5",8,8,"Муниципальное автономное общеобразовательное учреждение \"Школа №118 с углубленным изучением отдельных предметов\"",16,"участник",null,"Смирнов Роман Николаевич"]
[131,"Московский","sch2272/edu520732/8/42v224",8,8,"Муниципальное автономное  общеобразовательное учреждение \"Гимназия №67\"",16,"участник",null,"Клокова Татьяна Александровна"]
[132,"Московский","sch2272/edu520724/8/479g24",8,8,"Муниципальное бюджетное общеобразовательное учреждение \"Школа № 93\"",15.5,"участник",null,"Аверьянова Татьяна Витальевна"]
[133,"Московский","sch2272/edu520723/8/grq438",8,8,"Муниципальное бюджетное общеобразовательное учреждение \"Школа № 73\"",15.5,"участник",null,"Васильева Елена Валерьевна"]
[134,"Московский","sch2272/edu520729/8/823gw5",8,8,"Муниципальное автономное общеобразовательное учреждение \"Школа №178\"",15.5,"участник",null,"Буханова Евгения Юрьевна"]
[135,"Московский","sch2272/edu520726/8/29z7z5",8,8,"Муниципальное автономное общеобразовательное учреждение МАОУ \"Школа №139\" ",15,"участник",null,"Кривдина Елена Викторовна"]
[136,"Московский","sch2272/edu520733/8/49grv4",8,8,"Муниципальное бюджетное общеобразовательное учреждение \"Лицей № 87 имени Л.И.Новиковой\"",15,"участник",null,"Сизова Алла Евгеньевна"]
[137,"Московский","sch2272/edu520732/8/47z72g",8,8,"Муниципальное автономное  общеобразовательное учреждение \"Гимназия №67\"",15,"участник",null,"Клокова Татьяна Александровна"]
[138,"Московский","sch2272/edu520722/8/45qw24",8,8,"Муниципальное бюджетное общеобразовательное учреждение \"\"Школа № 69\"",14.5,"участник",null,"Севирова Валентина Ильинична"]
[139,"Московский","sch2272/edu520719/8/w885qw",8,8,"Муниципальное бюджетное общеобразовательное учреждение \"Школа № 64\"","14.5","участник",null,"Полежаева Элина Демидовна"]
[140,"Московский","sch2272/edu520729/8/5w2938",8,8,"Муниципальное автономное общеобразовательное учреждение \"Школа №178\"",14.5,"участник",null,"Буханова Евгения Юрьевна"]
[141,"Московский","sch2272/edu520719/8/vg4r6w",8,8,"Муниципальное бюджетное общеобразовательное учреждение \"Школа № 64\"",14,"участник",null,"Полежаева Элина Демидовна"]
[142,"Московский","sch2272/edu520726/8/5q84r2",8,8,"Муниципальное автономное общеобразовательное учреждение МАОУ \"Школа №139\" ",13.5,"участник",null,"Кривдина Елена Викторовна"]
[143,"Московский","sch2272/edu520732/8/gr9r34",8,8,"Муниципальное автономное  общеобразовательное учреждение \"Гимназия №67\"",13.5,"участник",null,"Клокова Татьяна Александровна"]
[144,"Московский","sch2272/edu520722/8/v9w8zv",8,8,"Муниципальное бюджетное общеобразовательное учреждение \"\"Школа № 69\"",13,"участник",null,"Севирова Валентина Ильинична"]
[145,"Московский","sch2272/edu520727/8/85wq78",8,8,"Муниципальное автономное  общеобразовательное учреждение \"Школа № 149\"",13,"участник",null,"Венецкий Дмитрий Владимирович"]
[146,"Московский","sch2272/edu520723/8/gz639g",8,8,"Муниципальное бюджетное общеобразовательное учреждение \"Школа № 73\"",13,"участник",null,"Васильева Елена Валерьевна"]
[147,"Московский","sch2272/edu520729/8/5z3gr8",8,8,"Муниципальное автономное общеобразовательное учреждение \"Школа №178\"",13,"участник",null,"Буханова Евгения Юрьевна"]
[148,"Московский","sch2272/edu520729/8/823vw5",8,8,"Муниципальное автономное общеобразовательное учреждение \"Школа №178\"",12.5,"участник",null,"Буханова Евгения Юрьевна"]
[149,"Московский","sch2272/edu520718/8/z67gvq",8,8,"Муниципальное бюджетное общеобразовательное учреждение \"Школа № 21\"",12.5,null,null,"Маструков Сергей Дмитриевич"]
[150,"Московский","sch2272/edu523542/8/2w8wg9",8,8,"Муниципальное бюджетное общеобразовательное учреждение \"Школа № 66\"",11.5,"участник",null,"Корнилова Ирина Викторовна"]
[151,"Московский","sch2272/edu520722/8/4g2z6v",8,8,"Муниципальное бюджетное общеобразовательное учреждение \"\"Школа № 69\"",11.5,"участник",null,"Севирова Валентина Ильинична"]
[152,"Московский","sch2272/edu520807/8/5363v9",8,8,"Муниципальное автономное общеобразовательное учреждение \"Школа №118 с углубленным изучением отдельных предметов\"",11.5,"участник",null,"Смирнов Роман Николаевич"]
[153,"Московский","sch2272/edu520719/8/v6r57v",8,8,"Муниципальное бюджетное общеобразовательное учреждение \"Школа № 64\"",11,"участник",null,"Полежаева Элина Демидовна"]
[154,"Московский","sch2272/edu520732/8/45z6rg",8,8,"Муниципальное автономное  общеобразовательное учреждение \"Гимназия №67\"",10.5,"участник",null,"Клокова Татьяна Александровна"]
[155,"Московский","sch2272/edu520718/8/zg624q",8,8,"Муниципальное бюджетное общеобразовательное учреждение \"Школа № 21\"",10.5,null,null,"Маструков Сергей Дмитриевич"]
[156,"Московский","sch2272/edu520729/8/5z36r8",8,8,"Муниципальное автономное общеобразовательное учреждение \"Школа №178\"",10,"участник",null,"Буханова Евгения Юрьевна"]
[157,"Московский","sch2272/edu520719/8/vq624w",8,8,"Муниципальное бюджетное общеобразовательное учреждение \"Школа № 64\"",8.5,"участник",null,"Полежаева Элина Демидовна"]
[158,"Московский","sch2272/edu520719/8/vq3r4v",8,8,"Муниципальное бюджетное общеобразовательное учреждение \"Школа № 64\"",8,"участник",null,"Полежаева Элина Демидовна"]
[159,"Московский","sch2272/edu520807/8/5q7v85",8,8,"Муниципальное автономное общеобразовательное учреждение \"Школа №118 с углубленным изучением отдельных предметов\"",8,"участник",null,"Смирнов Роман Николаевич"]
[160,"Московский","sch2272/edu520724/8/zgg8wz",8,8,"Муниципальное бюджетное общеобразовательное учреждение \"Школа № 93\"",7,"участник",null,"Аверьянова Татьяна Витальевна"]
[161,"Московский","sch2272/edu520732/8/g33rvg",8,8,"Муниципальное автономное  общеобразовательное учреждение \"Гимназия №67\"",5,"участник",null,"Клокова Татьяна Александровна"]
[162,"Московский","sch2272/edu520730/8/87644z",8,8,"муниципальное автономное  общеобразовательное учреждение \"Школа № 70 с углубленным изучением отдельных предметов\"",4.5,"участник",null,"Пестова Ирина Ивановна"]
[163,"Московский","sch2272/edu520724/8/4r6r84",8,8,"Муниципальное бюджетное общеобразовательное учреждение \"Школа № 93\"",4,"участник",null,"Аверьянова Татьяна Витальевна"]
[164,"Московский","sch2272/edu520726/8/564775",8,8,"Муниципальное автономное общеобразовательное учреждение МАОУ \"Школа №139\" ",4,"участник",null,"Кривдина Елена Викторовна"]
[165,"Московский","sch2272/edu520807/8/5zg269",8,8,"Муниципальное автономное общеобразовательное учреждение \"Школа №118 с углубленным изучением отдельных предметов\"",4,"участник",null,"Смирнов Роман Николаевич"]
[166,"Московский","sch2272/edu520724/8/z2g294",8,8,"Муниципальное бюджетное общеобразовательное учреждение \"Школа № 93\"",3.5,"участник",null,"Аверьянова Татьяна Витальевна"]
[167,"Московский","sch2272/edu520723/8/87649g",8,8,"Муниципальное бюджетное общеобразовательное учреждение \"Школа № 73\"",3.5,"участник",null,"Васильева Елена Валерьевна"]
[168,"Московский","sch2272/edu520726/8/5zq432",8,8,"Муниципальное автономное общеобразовательное учреждение МАОУ \"Школа №139\" ",3,"участник",null,"Кривдина Елена Викторовна"]
[169,"Московский","sch2272/edu520718/8/zrw6wq",8,8,"Муниципальное бюджетное общеобразовательное учреждение \"Школа № 21\"",3,null,null,"Маструков Сергей Дмитриевич"]
[170,"Московский","sch2272/edu520729/8/57w3z5",8,8,"Муниципальное автономное общеобразовательное учреждение \"Школа №178\"",0,"участник",null,"Буханова Евгения Юрьевна"]
[171,"Московский","sch2272/edu520732/8/479v24",8,8,"Муниципальное автономное  общеобразовательное учреждение \"Гимназия №67\"",0,"участник",null,"Клокова Татьяна Александровна"]

{"sheet":"Химия 9","index":1,"n_rows":167,"n_cols":11,"rows_kept":167,"cut":false,"hidden":false,"merged":[[2,0,2,1]]}
[null,null,null,"Итоговый протокол результатов школьного этапа Олимпиады по  ХИМИИ 9 класс"]
[]
["максимальный балл ",null,50]
["№ п/п","Муниципалитет","Шифр (код) выданный ребенку","класс обучается","класс выступает","ОО, в которой обучается (полное название по УСТАВУ)","Количество набранных баллов","Статус","Победитель/призер МЭ 2020-2021 (статус)*","ФИО учителя (наставника)","ФИО учителя (наставника)**"]
[1,"Московский","sch2292/edu520730/9/zw2r74",9,9,"муниципальное автономное  общеобразовательное учреждение \"Школа № 70 с углубленным изучением отдельных предметов\"",37.700000000000003,"победитель ","призер","Артюшина Елена Александровна"]
[2,"Московский","sch2292/edu520726/9/qg6z8g",9,9,"Муниципальное автономное общеобразовательное учреждение \"Школа № 139\"",32,"призер",null,"Кривдина Елена Викторовна"]
[3,"Московский","sch2292/edu520732/9/9458rq",9,9,"Муниципальное автономное  общеобразовательное учреждение \"Гимназия №67\"",31,"призер",null,"Клокова Татьяна Александровна"]
[4,"Московский","sch2292/edu523547/9/48w2qg",9,9,"Муниципальное автономное  общеобразовательное учреждение \"Школа № 172\"",30.25,"призер",null,"Додина Надежда Леонидовна"]
[5,"Московский","sch2292/edu520732/9/q99z6q",9,9,"Муниципальное автономное  общеобразовательное учреждение \"Гимназия №67\"",30,"призер",null,"Клокова Татьяна Александровна"]
[6,"Московский","sch2292/edu520733/9/7z98vw",9,9,"Муниципальное  бюджетное общеобразовательное учреждение \"Лицей № 87 имени Л.И.Новиковой\"",29.5,"призер",null,"Сизова Алла Евгеньевна"]
[7,"Московский","sch2292/edu520733/9/qw7r9z",9,9,"Муниципальное  бюджетное общеобразовательное учреждение \"Лицей № 87 имени Л.И.Новиковой\"",28.75,"призер",null,"Сизова Алла Евгеньевна"]
[8,"Московский","sch2292/edu520729/9/wzwq3z",9,9,"Муниципальное автономное общеобразовательное учреждение \"Школа №178\"",28,"призер",null,"Буханова Евгения Юрьевна"]
[9,"Московский","sch2292/edu523547/9/493w34",9,9,"Муниципальное автономное  общеобразовательное учреждение \"Школа № 172\"",27.75,"призер",null,"Додина Надежда Леонидовна"]
[10,"Московский","sch2292/edu520732/9/74v73q",9,9,"Муниципальное автономное  общеобразовательное учреждение \"Гимназия №67\"",27,"призер",null,"Клокова Татьяна Александровна"]
[11,"Московский","sch2292/edu520729/9/7z2748",9,9,"Муниципальное автономное общеобразовательное учреждение \"Школа №178\"",27,"призер",null,"Буханова Евгения Юрьевна"]
[12,"Московский","sch2292/edu520807/9/g6vq9g",9,9,"Муниципальное автономное общеобразовательное учреждение \"Школа №118 с углубленным изучением отдельных предметов\"",27,"призер",null,"Смирнов Роман Николаевич"]
[13,"Московский","sch2292/edu520807/9/58qqqg",9,9,"Муниципальное автономное общеобразовательное учреждение \"Школа №118 с углубленным изучением отдельных предметов\"",26.7,"призер",null,"Смирнов Роман Николаевич"]
[14,"Московский","sch2292/edu520726/9/75z7wg",9,9,"Муниципальное автономное общеобразовательное учреждение \"Школа №139\"",25.5,"призер",null,"Кривдина Елена Викторовна"]
[15,"Московский","sch2292/edu523547/9/46q5rg",9,9,"Муниципальное автономное  общеобразовательное учреждение \"Школа № 172\"",25,"призер",null,"Аладьина Екатерина Владимировна"]
[16,"Московский","sch2292/edu520727/9/v8w978",9,9,"Муниципальное автономное  общеобразовательное учреждение \"Школа № 149\"",25,"призер",null,"Венецкий Дмитрий Владимирович"]
[17,"Московский","sch2292/edu520732/9/rqg824",9,9,"Муниципальное автономное  общеобразовательное учреждение \"Гимназия №67\"",24.75,"участник",null,"Клокова Татьяна Александровна"]
[18,"Московский","sch2292/edu520729/9/68v2g8",9,9,"Муниципальное автономное общеобразовательное учреждение \"Школа №178\"",24.2,"участник",null,"Буханова Евгения Юрьевна"]
[19,"Московский","sch2292/edu523542/9/rg83z2",9,9,"Муниципальное бюджетное общеобразовательное учреждение \"Школа № 66\"",24,"участник",null,"Корнилова Ирина Викторовна"]
[20,"Московский","sch2292/edu520731/9/r5qq2r",9,9,"Муниципальное автономное  общеобразовательное учреждение \"Школа №74 с углубленным изучением отдельных предметов\"",24,"участник",null,"Тимофеева Марина Александровна"]
[21,"Московский","sch2292/edu520729/9/38rr98",9,9,"Муниципальное автономное общеобразовательное учреждение \"Школа №178\"",23.75,"участник",null,"Буханова Евгения Юрьевна"]
[22,"Московский","sch2292/edu523542/9/r6447r",9,9,"Муниципальное бюджетное общеобразовательное учреждение \"Школа № 66\"",23.7,"участник",null,"Корнилова Ирина Викторовна"]
[23,"Московский","sch2292/edu520724/9/8w6qqz",9,9,"Муниципальное бюджетное общеобразовательное учреждение \"Школа № 93\"",23.25,"участник",null,"Аверьянова Татьяна Витальевна"]
[24,"Московский","sch2292/edu520733/9/2wq63z",9,9,"Муниципальное  бюджетное общеобразовательное учреждение \"Лицей № 87 имени Л.И.Новиковой\"",23.25,"участник",null,"Сизова Алла Евгеньевна"]
[25,"Московский","sch2292/edu520724/9/w8237w",9,9,"Муниципальное бюджетное общеобразовательное учреждение \"Школа № 93\"",23,"участник",null,"Аверьянова Татьяна Витальевна"]
[26,"Московский","sch2292/edu520731/9/87qq58",9,9,"Муниципальное автономное  общеобразовательное учреждение \"Школа №74 с углубленным изучением отдельных предметов\"",23,"участник",null,"Тимофеева Марина Александровна"]
[27,"Московский","sch2292/edu520732/9/2qz564",9,9,"Муниципальное автономное  общеобразовательное учреждение \"Гимназия №67\"",23,"участник",null,"Клокова Татьяна Александровна"]
[28,"Московский","sch2292/edu523542/9/27g772",9,9,"Муниципальное бюджетное общеобразовательное учреждение \"Школа № 66\"",22.75,"участник",null,"Корнилова Ирина Викторовна"]
[29,"Московский","sch2292/edu523547/9/g5955g",9,9,"Муниципальное автономное  общеобразовательное учреждение \"Школа № 172\"",22.5,"участник",null,"Додина Надежда Леонидовна"]
[30,"Московский","sch2292/edu523547/9/g2wqv4",9,9,"Муниципальное автономное  общеобразовательное учреждение \"Школа № 172\"",22.5,"участник",null,"Додина Надежда Леонидовна"]
[31,"Московский","sch2292/edu520733/9/7z935z",9,9,"Муниципальное  бюджетное общеобразовательное учреждение \"Лицей № 87 имени Л.И.Новиковой\"",22.5,"участник",null,"Сизова Алла Евгеньевна"]
[32,"Московский","sch2292/edu520733/9/8z448z",9,9,"Муниципальное бюджетное общеобразовательное учреждение \"Лицей № 87 имени  Л.И.Новиковой\"",22.25,"участник",null,"Сизова Алла Евгеньевна"]
[33,"Московский","sch2292/edu520724/9/qzvr6z",9,9,"Муниципальное бюджетное общеобразовательное учреждение \"Школа № 93\"",22,"участник",null,"Аверьянова Татьяна Витальевна"]
[34,"Московский","sch2292/edu520727/9/r69336",9,9,"Муниципальное автономное  общеобразовательное учреждение \"Школа № 149\"",21.95,"участник",null,"Венецкий Дмитрий Владимирович"]
[35,"Московский","sch2292/edu520733/9/4zr27z",9,9,"Муниципальное  бюджетное общеобразовательное учреждение \"Лицей № 87 имени Л.И.Новиковой\"",21.75,"участник",null,"Сизова Алла Евгеньевна"]
[36,"Московский","sch2292/edu520726/9/q5wrqg",9,9,"Муниципальное автономное общеобразовательное учреждение \"Школа №139\"",21.7,"участник",null,"Кривдина Елена Викторовна"]
[37,"Московский","sch2292/edu520719/9/74zv84",9,9,"Муниципальное бюджетное общеобразовательное учреждение \"Школа № 64\"",21.7,"участник",null,"Полежаева Элина Демидовна"]
[38,"Московский","sch2292/edu523547/9/4r956g",9,9,"Муниципальное автономное  общеобразовательное учреждение \"Школа № 172\"",21.5,"участник",null,"Додина Надежда Леонидовна"]
[39,"Московский","sch2292/edu520729/9/7835v8",9,9,"Муниципальное автономное общеобразовательное учреждение \"Школа №178\"",21.5,"участник",null,"Буханова Евгения Юрьевна"]
[40,"Московский","sch2292//edu520726/9/3g8vrg",9,9,"Муниципальное автономное общеобразовательное учреждение \"Школа №139\"",21.25,"участник",null,"Кривдина Елена Викторовна"]
[41,"Московский","sch2292/edu523542/9/r9wwvr",9,9,"Муниципальное бюджетное общеобразовательное учреждение \"Школа № 66\"",21,"участник",null,"Корнилова Ирина Викторовна"]
[42,"Московский","sch2292/edu520727/9/855qq8",9,9,"Муниципальное автономное  общеобразовательное учреждение \"Школа № 149\"",21,"участник",null,"Венецкий Дмитрий Владимирович"]
[43,"Московский","sch2292/edu520729/9/3zg77z",9,9,"Муниципальное автономное общеобразовательное учреждение \"Школа №178\"",21,"участник",null,"Буханова Евгения Юрьевна"]
[44,"Московский","sch2292/edu520733/9/w2322z",9,9,"Муниципальное  бюджетное общеобразовательное учреждение \"Лицей № 87 имени Л.И.Новиковой\"",20.75,"участник",null,"Сизова Алла Евгеньевна"]
[45,"Московский","sch2292/edu523547/9/43v5zg",9,9,"Муниципальное автономное  общеобразовательное учреждение \"Школа № 172\"",20.7,"участник",null,"Аладьина Екатерина Владимировна"]
[46,"Московский","sch2292/edu520733/9/w7g64w",9,9,"Муниципальное бюджетное общеобразовательное учреждение \"Лицей № 87 имени  Л.И.Новиковой\"",20.5,"участник",null,"Сизова Алла Евгеньевна"]
[47,"Московский","sch2292/edu520807/9/g4ww75",9,9,"Муниципальное автономное общеобразовательное учреждение \"Школа №118 с углубленным изучением отдельных предметов\"",20.5,"участник",null,"Смирнов Роман Николаевич"]
[48,"Московский","sch2292/edu523542/9/rv77v2",9,9,"Муниципальное бюджетное общеобразовательное учреждение \"Школа № 66\"",20,"участник",null,"Корнилова Ирина Викторовна"]
[49,"Московский","sch2292/edu520726/9/q5rzv5",9,9,"Муниципальное автономное общеобразовательное учреждение \"Школа №139\"",19.95,"участник",null,"Кривдина Елена Викторовна"]
[50,"Московский","sch2292/edu520722/9/5r3g9r",9,9,"Муниципальное бюджетное общеобразовательное учреждение \"\"Школа № 69\"",19.7,"участник",null,"Севирова Валентина Ильинична"]
[51,"Московский","sch2292/edu520724/9/8w6vqw",9,9,"Муниципальное бюджетное общеобразовательное учреждение \"Школа № 93\"",19.5,"участник",null,"Аверьянова Татьяна Витальевна"]
[52,"Московский","sch2292/edu520729/9/3z733z",9,9,"Муниципальное автономное общеобразовательное учреждение \"Школа №178\"",19.5,"участник",null,"Буханова Евгения Юрьевна"]
[53,"Московский","sch2292/edu520731/9/8499gr",9,9,"Муниципальное автономное  общеобразовательное учреждение \"Школа №74 с углубленным изучением отдельных предметов\"","19, 5","участник",null,"Тимофеева Марина Александровна"]
[54,"Московский","sch2292/edu520729/9/38r94z",9,9,"Муниципальное автономное общеобразовательное учреждение \"Школа №178\"",19.5,"участник",null,"Буханова Евгения Юрьевна"]
[55,"Московский","sch2292/edu520730/9/zrrwrz",9,9,"муниципальное автономное  общеобразовательное учреждение \"Школа № 70 с углубленным изучением отдельных предметов\"",19.5,"участник",null,"Артюшина Елена Александровна"]
[56,"Московский","sch2292/edu520807/9/5zqqzg",9,9,"Муниципальное автономное общеобразовательное учреждение \"Школа №118 с углубленным изучением отдельных предметов\"",19.45,"участник",null,"Смирнов Роман Николаевич"]
[57,"Московский","sch2292/edu523542/9/r4qwz2",9,9,"Муниципальное бюджетное общеобразовательное учреждение \"Школа № 66\"",19.25,"участник",null,"Корнилова Ирина Викторовна"]
[58,"Московский","sch2292/edu523542/9/r5w5qr",9,9,"Муниципальное бюджетное общеобразовательное учреждение \"Школа № 66\"",19.25,"участник",null,"Корнилова Ирина Викторовна"]
[59,"Московский","sch2292/edu520726/9/4g9vv5",9,9,"Муниципальное автономное общеобразовательное учреждение \"Школа №139\"",19.25,"участник",null,"Кривдина Елена Викторовна"]
[60,"Московский","sch2292/edu520807/9/5v2vz5",9,9,"Муниципальное автономное общеобразовательное учреждение \"Школа №118 с углубленным изучением отдельных предметов\"",19.25,"участник",null,"Смирнов Роман Николаевич"]
[61,"Московский","sch2292/edu520807/9/5378z5",9,9,"Муниципальное автономное общеобразовательное учреждение \"Школа №118 с углубленным изучением отдельных предметов\"",19.25,"участник",null,"Смирнов Роман Николаевич"]
[62,"Московский","sch2292/edu520727/9/zg337g",9,9,"Муниципальное автономное общеобразовательное учреждение \"Школа №139\"",19,"участник",null,"Кривдина Елена Викторовна"]
[63,"Московский","sch2292/edu520807/9/g6vv9g",9,9,"Муниципальное автономное общеобразовательное учреждение \"Школа №118 с углубленным изучением отдельных предметов\"",19,"участник",null,"Смирнов Роман Николаевич"]
[64,"Московский","sch2292/edu520807/9/g922v5",9,9,"Муниципальное автономное общеобразовательное учреждение \"Школа №118 с углубленным изучением отдельных предметов\"",19,"участник",null,"Смирнов Роман Николаевич"]
[65,"Московский","sch2292/edu520724/9/gwg22z",9,9,"Муниципальное бюджетное общеобразовательное учреждение \"Школа № 93\"",18.7,"участник",null,"Аверьянова Татьяна Витальевна"]
[66,"Московский","sch2292/edu520719/9/g4gqz4",9,9,"Муниципальное бюджетное общеобразовательное учреждение \"Школа № 64\"",18.5,"участник",null,"Полежаева Элина Демидовна"]
[67,"Московский","sch2292/edu520807/9/5q473g",9,9,"Муниципальное автономное общеобразовательное учреждение \"Школа №118 с углубленным изучением отдельных предметов\"",18.5,"участник",null,"Смирнов Роман Николаевич"]
[68,"Московский","sch2292/edu520729/9/3z7v28",9,9,"Муниципальное автономное общеобразовательное учреждение \"Школа №178\"",18.5,"участник",null,"Буханова Евгения Юрьевна"]
[69,"Московский","sch2292/edu520732/9/6q97vq",9,9,"Муниципальное автономное  общеобразовательное учреждение \"Гимназия №67\"",18.5,"участник",null,"Клокова Татьяна Александровна"]
[70,"Московский","sch2292/edu520732/9/q2v39q",9,9,"Муниципальное автономное  общеобразовательное учреждение \"Гимназия №67\"",18.5,"участник",null,"Клокова Татьяна Александровна"]
[71,"Московский","sch2292/edu523542/9/2z776r",9,9,"Муниципальное бюджетное общеобразовательное учреждение \"Школа № 66\"",18.45,"участник",null,"Корнилова Ирина Викторовна"]
[72,"Московский","sch2292/edu523542/9/28qq5r",9,9,"Муниципальное бюджетное общеобразовательное учреждение \"Школа № 66\"",18.45,"участник",null,"Корнилова Ирина Викторовна"]
[73,"Московский","sch2292/edu520732/9/2qzw64",9,9,"Муниципальное автономное  общеобразовательное учреждение \"Гимназия №67\"",18.25,"участник",null,"Клокова Татьяна Александровна"]
[74,"Московский","sch2292/edu520730/9/z82qwz",9,9,"муниципальное автономное  общеобразовательное учреждение \"Школа № 70 с углубленным изучением отдельных предметов\"",18,"участник",null,"Артюшина Елена Александровна"]
[75,"Московский","sch2292/edu520730/9/z358vz",9,9,"муниципальное автономное  общеобразовательное учреждение \"Школа № 70 с углубленным изучением отдельных предметов\"",17.75,"участник",null,"Артюшина Елена Александровна"]
[76,"Московский","sch2292/edu520727/9/z8vv28",9,9,"Муниципальное автономное  общеобразовательное учреждение \"Школа № 149\"",17.7,"участник",null,"Венецкий Дмитрий Владимирович"]
[77,"Московский","sch2292/edu520719/9/gw7234",9,9,"Муниципальное бюджетное общеобразовательное учреждение \"Школа № 64\"",17.5,"участник",null,"Полежаева Элина Демидовна"]
[78,"Московский","sch2292/edu520732/9/9q3824",9,9,"Муниципальное автономное  общеобразовательное учреждение \"Гимназия №67\"",17.5,"участник",null,"Клокова Татьяна Александровна"]
[79,"Московский","sch2292/edu520731/9/r255v8",9,9,"Муниципальное автономное  общеобразовательное учреждение \"Школа №74 с углубленным изучением отдельных предметов\"","17, 5","участник",null,"Тимофеева Марина Александровна"]
[80,"Московский","sch2292/edu520731/9/r9ww4r",9,9,"Муниципальное автономное  общеобразовательное учреждение \"Школа №74 с углубленным изучением отдельных предметов\"",17.2,"участник",null,"Тимофеева Марина Александровна"]
[81,"Московский","sch2292/edu520729/9/7834qz",9,9,"Муниципальное автономное общеобразовательное учреждение \"Школа №178\"",17.100000000000001,"участник",null,"Буханова Евгения Юрьевна"]
[82,"Московский","sch2292/edu520726/9/q5r2v5",9,9,"Муниципальное автономное общеобразовательное учреждение \"Школа №139\"",17,"участник",null,"Кривдина Елена Викторовна"]
[83,"Московский","sch2292/edu520807/9/5r48w5",9,9,"Муниципальное автономное общеобразовательное учреждение \"Школа №118 с углубленным изучением отдельных предметов\"",17,"участник",null,"Смирнов Роман Николаевич"]
[84,"Московский","sch2292/edu520807/9/57rvzg",9,9,"Муниципальное автономное общеобразовательное учреждение \"Школа №118 с углубленным изучением отдельных предметов\"",16.5,"участник",null,"Смирнов Роман Николаевич"]
[85,"Московский","sch2292/edu520729/9/3z772z",9,9,"Муниципальное автономное общеобразовательное учреждение \"Школа №178\"",16.5,"участник",null,"Буханова Евгения Юрьевна"]
[86,"Московский","sch2292/edu520718/9/46r3zq",9,null,null,16.5,"участник"]
[87,"Московский","sch2292/edu520729/9/7z557z",9,9,"Муниципальное автономное общеобразовательное учреждение \"Школа №178\"",16.25,"участник",null,"Буханова Евгения Юрьевна"]
[88,"Московский","sch2292/edu520730/9/zv9rq4",9,9,"муниципальное автономное  общеобразовательное учреждение \"Школа № 70 с углубленным изучением отдельных предметов\"",16.25,"участник",null,"Артюшина Елена Александровна"]
[89,"Московский","sch2292/edu520807/9/g92zv5",9,9,"Муниципальное автономное общеобразовательное учреждение \"Школа №118 с углубленным изучением отдельных предметов\"",16.2,"участник",null,"Смирнов Роман Николаевич"]
[90,"Московский","sch2292/edu523542/9/rv75v2",9,9,"Муниципальное бюджетное общеобразовательное учреждение \"Школа № 66\"",16,"участник",null,"Корнилова Ирина Викторовна"]
[91,"Московский","sch2292/edu520724/9/3z4r3z",9,9,"Муниципальное бюджетное общеобразовательное учреждение \"Школа № 93\"",16,"участник",null,"Аверьянова Татьяна Витальевна"]
[92,"Московский","sch2292/edu520733/9/4z5gqz",9,9,"Муниципальное  бюджетное общеобразовательное учреждение \"Лицей № 87 имени Л.И.Новиковой\"",16,"участник",null,"Сизова Алла Евгеньевна"]
[93,"Московский","sch2292/edu520729/9/vz6398",9,9,"Муниципальное автономное общеобразовательное учреждение \"Школа №178\"",15.95,"участник",null,"Буханова Евгения Юрьевна"]
[94,"Московский","sch2292/edu526233/9/3r76v9",9,9,"Муниципальное бюджетное общеобразовательное учреждение \"Школа № 146\"",15.9,"участник",null,"Козляева Татьяна Михайловна"]
[95,"Московский","sch2292/edu523542/9/rg88z2",9,9,"Муниципальное бюджетное общеобразовательное учреждение \"Школа № 66\"",15.7,"участник",null,"Корнилова Ирина Викторовна"]
[96,"Московский","sch2292/edu520733/9/w6728z",9,9,"Муниципальное бюджетное общеобразовательное учреждение \"Лицей № 87 имени  Л.И.Новиковой\"",15.45,"участник",null,"Сизова Алла Евгеньевна"]
[97,"Московский","sch2292/edu520807/9/5w2qzg",9,9,"Муниципальное автономное общеобразовательное учреждение \"Школа №118 с углубленным изучением отдельных предметов\"",15.25,"участник",null,"Смирнов Роман Николаевич"]
[98,"Московский","sch2292/edu520807/9/5w22zg",9,9,"Муниципальное автономное общеобразовательное учреждение \"Школа №118 с углубленным изучением отдельных предметов\"",15,"участник",null,"Смирнов Роман Николаевич"]
[99,"Московский","sch2292/edu520729/9/wzww6z",9,9,"Муниципальное автономное общеобразовательное учреждение \"Школа №178\"",14.95,"участник",null,"Буханова Евгения Юрьевна"]
[100,"Московский","sch2292/edu520730/9/zg28v4",9,9,"муниципальное автономное  общеобразовательное учреждение \"Школа № 70 с углубленным изучением отдельных предметов\"",14.5,"участник",null,"Артюшина Елена Александровна"]
[101,"Московский","sch2292/edu526233/9/vrw2v9",9,9,"Муниципальное бюджетное общеобразовательное учреждение \"Школа № 146\"",14.4,"участник",null,"Козляева Татьяна Михайловна"]
[102,"Московский","sch2292/edu520724/9/z46v3z",9,9,"Муниципальное бюджетное общеобразовательное учреждение \"Школа № 93\"",14.25,"участник",null,"Аверьянова Татьяна Витальевна"]
[103,"Московский","sch2292/edu520726/9/w57w85",9,9,"Муниципальное автономное общеобразовательное учреждение \"Школа №139\"",14.25,"участник",null,"Кривдина Елена Викторовна"]
[104,"Московский","sch2292/edu520727/9/849596",9,9,"Муниципальное автономное  общеобразовательное учреждение \"Школа № 149\"",14.25,"участник",null,"Венецкий Дмитрий Владимирович"]
[105,"Московский","sch2292/edu520733/9/2wq86z",9,9,"Муниципальное  бюджетное общеобразовательное учреждение \"Лицей № 87 имени Л.И.Новиковой\"",14.2,"участник",null,"Сизова Алла Евгеньевна"]
[106,"Московский","sch2292/edu520729/9/58qqv8",9,9,"Муниципальное автономное общеобразовательное учреждение \"Школа №178\"",13.95,"участник",null,"Буханова Евгения Юрьевна"]
[107,"Московский","sch2292/edu520726/9/3g43z5",9,9,"Муниципальное автономное общеобразовательное учреждение \"Школа №139\"",13.7,"участник",null,"Кривдина Елена Викторовна"]
[108,"Московский","sch2292/edu520719/9/g4698w",9,9,"Муниципальное бюджетное общеобразовательное учреждение \"Школа № 64\"",13.5,"участник",null,"Полежаева Элина Демидовна"]
[109,"Московский","sch2292/edu520729/9/w895w8",9,9,"Муниципальное автономное общеобразовательное учреждение \"Школа №178\"",13.5,"участник",null,"Буханова Евгения Юрьевна"]
[110,"Московский","sch2292/edu520729/9/7836qz",9,9,"Муниципальное автономное общеобразовательное учреждение \"Школа №178\"",13.5,"участник",null,"Буханова Евгения Юрьевна"]
[111,"Московский","sch2292/edu520729/9/783qv8",9,9,"Муниципальное автономное общеобразовательное учреждение \"Школа №178\"",13.45,"участник",null,"Буханова Евгения Юрьевна"]
[112,"Московский","sch2292/edu520732/9/6q9gvq",9,9,"Муниципальное автономное  общеобразовательное учреждение \"Гимназия №67\"",13.4,"участник",null,"Клокова Татьяна Александровна"]
[113,"Московский","sch2292/edu520733/9/4z55vz",9,9,"Муниципальное  бюджетное общеобразовательное учреждение \"Лицей № 87 имени Л.И.Новиковой\"",13.2,"участник",null,"Сизова Алла Евгеньевна"]
[114,"Московский","sch2292/edu520729/9/w8945z",9,9,"Муниципальное автономное общеобразовательное учреждение \"Школа №178\"",13.1,"участник",null,"Буханова Евгения Юрьевна"]
[115,"Московский","sch2292/edu520729/9/38r298",9,9,"Муниципальное автономное общеобразовательное учреждение \"Школа №178\"",12.8,"участник",null,"Буханова Евгения Юрьевна"]
[116,"Московский","sch2292/edu520732/9/4vr554",9,9,"Муниципальное автономное  общеобразовательное учреждение \"Гимназия №67\"",12.5,"участник",null,"Клокова Татьяна Александровна"]
[117,"Московский","sch2292/edu520733/9/3w85vz",9,9,"Муниципальное  бюджетное общеобразовательное учреждение \"Лицей № 87 имени Л.И.Новиковой\"",12.25,"участник",null,"Сизова Алла Евгеньевна"]
[118,"Московский","sch2292/edu520729/9/w8965z",9,9,"Муниципальное автономное общеобразовательное учреждение \"Школа №178\"",12.25,"участник",null,"Буханова Евгения Юрьевна"]
[119,"Московский","sch2292/edu520729/9/58q558",9,9,"Муниципальное автономное общеобразовательное учреждение \"Школа №178\"",12.25,"участник",null,"Буханова Евгения Юрьевна"]
[120,"Московский","sch2292/edu520726/9/w5vwqg",9,9,"Муниципальное автономное общеобразовательное учреждение \"Школа №139\"",12.2,"участник",null,"Кривдина Елена Викторовна"]
[121,"Московский","sch2292/edu520729/9/58q758",9,9,"Муниципальное автономное общеобразовательное учреждение \"Школа №178\"",11,"участник",null,"Буханова Евгения Юрьевна"]
[122,"Московский","sch2292/edu520726/9/zg3v75",9,9,"Муниципальное автономное общеобразовательное учреждение \"Школа №139\"",10.5,"участник",null,"Кривдина Елена Викторовна"]
[123,"Московский","sch2292/edu520723/9/q2v37q",9,9,"Муниципальное бюджетное общеобразовательное учреждение \"Школа № 73\"",10.5,"участник",null,"Васильева Елена Валерьевна"]
[124,"Московский","sch2292/edu520732/9/24725q",9,9,"Муниципальное автономное  общеобразовательное учреждение \"Гимназия №67\"",10.5,"участник",null,"Клокова Татьяна Александровна"]
[125,"Московский","sch2292/edu520731/9/83zzgr",9,9,"Муниципальное автономное  общеобразовательное учреждение \"Школа №74 с углубленным изучением отдельных предметов\"","10, 7","участник",null,"Тимофеева Марина Александровна"]
[126,"Московский","sch2292/edu520807/9/52q68g",9,9,"Муниципальное автономное общеобразовательное учреждение \"Школа №118 с углубленным изучением отдельных предметов\"",10.25,"участник",null,"Смирнов Роман Николаевич"]
[127,"Московский","sch2292/edu520729/9/7z45q8",9,9,"Муниципальное автономное общеобразовательное учреждение \"Школа №178\"",10.199999999999999,"участник",null,"Буханова Евгения Юрьевна"]
[128,"Московский","sch2292/edu520729/9/68v428",9,9,"Муниципальное автономное общеобразовательное учреждение \"Школа №178\"",10.199999999999999,"участник",null,"Буханова Евгения Юрьевна"]
[129,"Московский","sch2292/edu523542/9/2q65gr",9,9,"Муниципальное бюджетное общеобразовательное учреждение \"Школа № 66\"",9.5,"участник",null,"Корнилова Ирина Викторовна"]
[130,"Московский","sch2292/edu520729/9/7z5q3z",9,9,"Муниципальное автономное общеобразовательное учреждение \"Школа №178\"",9.5,"участник",null,"Буханова Евгения Юрьевна"]
[131,"Московский","sch2292/edu520732/9/2qrvvq",9,9,"Муниципальное автономное  общеобразовательное учреждение \"Гимназия №67\"",9.5,"участник",null,"Клокова Татьяна Александровна"]
[132,"Московский","sch2292/edu520733/9/8z4r3z",9,9,"Муниципальное бюджетное общеобразовательное учреждение \"Лицей № 87 имени  Л.И.Новиковой\"",9.1999999999999993,"участник",null,"Сизова Алла Евгеньевна"]
[133,"Московский","sch2292/edu523542/9/r4qqz2",9,9,"Муниципальное бюджетное общеобразовательное учреждение \"Школа № 66\"",9,"участник",null,"Корнилова Ирина Викторовна"]
[134,"Московский","sch2292/edu520731/9/8qggq8",9,9,"Муниципальное автономное  общеобразовательное учреждение \"Школа №74 с углубленным изучением отдельных предметов\"",9,"участник",null,"Тимофеева Марина Александровна"]
[135,"Московский","sch2292/edu520726/9/w5v2q5",9,9,"Муниципальное автономное общеобразовательное учреждение \"Школа №139\"",8.5,"участник",null,"Кривдина Елена Викторовна"]
[136,"Московский","sch2292/edu520729/9/3zg36z",9,9,"Муниципальное автономное общеобразовательное учреждение \"Школа №178\"",8.25,"участник",null,"Буханова Евгения Юрьевна"]
[137,"Московский","sch2292/edu523542/9/2z736r",9,9,"Муниципальное бюджетное общеобразовательное учреждение \"Школа № 66\"",8,"участник",null,"Корнилова Ирина Викторовна"]
[138,"Московский","sch2292/edu520726/9/3g4vzg",9,9,"Муниципальное автономное общеобразовательное учреждение \"Школа №139\"",8,"участник",null,"Кривдина Елена Викторовна"]
[139,"Московский","sch2292/edu520729/9/68vv28",9,9,"Муниципальное автономное общеобразовательное учреждение \"Школа №178\"",7.8,"участник",null,"Буханова Евгения Юрьевна"]
[140,"Московский","sch2292/edu520723/9/q54z58",9,9,"Муниципальное бюджетное общеобразовательное учреждение \"Школа № 73\"",7.7,"участник",null,"Васильева Елена Валерьевна"]
[141,"Московский","sch2292/edu520719/9/34qv6w",9,9,"Муниципальное бюджетное общеобразовательное учреждение \"Школа № 64\"",7.65,"участник",null,"Полежаева Элина Демидовна"]
[142,"Московский","sch2292/edu520807/9/5q443g",9,9,"Муниципальное автономное общеобразовательное учреждение \"Школа №118 с углубленным изучением отдельных предметов\"",7.5,"участник",null,"Смирнов Роман Николаевич"]
[143,"Московский","sch2292/edu520729/9/3zg268",9,9,"Муниципальное автономное общеобразовательное учреждение \"Школа №178\"",7.5,"участник",null,"Буханова Евгения Юрьевна"]
[144,"Московский","sch2292/edu520729/9/7z5v78",9,9,"Муниципальное автономное общеобразовательное учреждение \"Школа №178\"",7.5,"участник",null,"Буханова Евгения Юрьевна"]
[145,"Московский","sch2292/edu520729/9/7z2v9z",9,9,"Муниципальное автономное общеобразовательное учреждение \"Школа №178\"",7.15,"участник",null,"Буханова Евгения Юрьевна"]
[146,"Московский","sch2292/edu520729/9/vz629z",9,9,"Муниципальное автономное общеобразовательное учреждение \"Школа №178\"",7.1,"участник",null,"Буханова Евгения Юрьевна"]
[147,"Московский","sch2292/edu520726/9/3g8rrg",9,9,"Муниципальное автономное общеобразовательное учреждение \"Школа №139\"",6.85,"участник",null,"Кривдина Елена Викторовна"]
[148,"Московский","sch2292/edu520729/9/wzw93z",9,9,"Муниципальное автономное общеобразовательное учреждение \"Школа №178\"",6.75,"участник",null,"Буханова Евгения Юрьевна"]
[149,"Московский","sch2292/edu526233/9/5r6gz9",9,9,"Муниципальное бюджетное общеобразовательное учреждение \"Школа № 146\"",6.4,"участник",null,"Козляева Татьяна Михайловна"]
[150,"Московский","sch2292/edu523542/9/23qq62",9,9,"Муниципальное бюджетное общеобразовательное учреждение \"Школа № 66\"",6.25,"участник",null,"Корнилова Ирина Викторовна"]
[151,"Московский","sch2292/edu520729/9/7z2g98",9,9,"Муниципальное автономное общеобразовательное учреждение \"Школа №178\"",6.05,"участник",null,"Буханова Евгения Юрьевна"]
[152,"Московский","sch2292/edu520729/9/3z7438",9,9,"Муниципальное автономное общеобразовательное учреждение \"Школа №178\"",5.75,"участник",null,"Буханова Евгения Юрьевна"]
[153,"Московский","sch2292/edu520732/9/2qrwv4",9,9,"Муниципальное автономное  общеобразовательное учреждение \"Гимназия №67\"",5.75,"участник",null,"Клокова Татьяна Александровна"]
[154,"Московский","sch2292/edu520723/9/qgr298",9,9,"Муниципальное бюджетное общеобразовательное учреждение \"Школа № 73\"",4.5,"участник",null,"Васильева Елена Валерьевна"]
[155,"Московский","sch2292/edu520729/9/7z4gg8",9,9,"Муниципальное автономное общеобразовательное учреждение \"Школа №178\"",4.3,"участник",null,"Буханова Евгения Юрьевна"]
[156,"Московский","sch2292/edu520730/9/47628z",9,9,"муниципальное автономное  общеобразовательное учреждение \"Школа № 70 с углубленным изучением отдельных предметов\"",4,"участник",null,"Артюшина Елена Александровна"]
[157,"Московский","sch2292/edu520729/9/wzw76z",9,9,"Муниципальное автономное общеобразовательное учреждение \"Школа №178\"",3.95,"участник",null,"Буханова Евгения Юрьевна"]
[158,"Московский","sch2292/edu520732/9/zq2594",9,9,"Муниципальное автономное  общеобразовательное учреждение \"Гимназия №67\"",3.75,"участник",null,"Клокова Татьяна Александровна"]
[159,"Московский","sch2292/edu520732/9/2qz8rq",9,9,"Муниципальное автономное  общеобразовательное учреждение \"Гимназия №67\"",2.1,"участник",null,"Клокова Татьяна Александровна"]
[160,"Московский","sch2292/edu520730/9/476q8z",9,9,"муниципальное автономное  общеобразовательное учреждение \"Школа № 70 с углубленным изучением отдельных предметов\"",1.75,"участник",null,"Артюшина Елена Александровна"]
[161,"Московский","sch2292/edu520726/9/4g96v5",9,9,"Муниципальное автономное общеобразовательное учреждение \"Школа №139\"",1.2,"участник",null,"Кривдина Елена Викторовна"]
[162,"Московский","sch2292/edu523542/9/r9wgvr",9,9,"Муниципальное бюджетное общеобразовательное учреждение \"Школа № 66\"",0,"участник",null,"Корнилова Ирина Викторовна"]
[163,"Московский","sch2292/edu520731/9/8v33gr",9,9,"Муниципальное автономное  общеобразовательное учреждение \"Школа №74 с углубленным изучением отдельных предметов\"",0,"участник",null,"Тимофеева Марина Александровна"]

{"sheet":"Химия 10","index":2,"n_rows":113,"n_cols":11,"rows_kept":113,"cut":false,"hidden":false,"merged":[[2,0,2,1]]}
[null,null,null,"Итоговый протокол результатов школьного этапа Олимпиады по  ХИМИИ 10 класс"]
[]
["максимальный балл ",null,50]
["№ п/п","Муниципалитет","Шифр (код) выданный ребенку","класс обучается","класс выступает","ОО, в которой обучается (полное название по УСТАВУ)","Количество набранных баллов","Статус","Победитель/призер МЭ 2020-2021 (статус)*","ФИО учителя (наставника)","ФИО учителя (наставника)**"]
[1,"Московский","sch22102/edu520807/10/76wzq5",10,10,"Муниципальное автономное общеобразовательное учреждение \"Школа №118 с углубленным изучением отдельных предметов\"",42,"Победитель",null,"Смирнов Роман Николаевич"]
[2,"Московский","sch22102/edu520733/10/95r6qz",10,10,"Муниципальное бюджетное общеобразовательное учреждение \"Лицей № 87 имени Л.И.Новиковой\"",37,"призер",null,"Сизова Алла Евгеньевна"]
[3,"Московский","sch22102/edu520733/10/v9w729",10,10,"Муниципальное бюджетное общеобразовательное учреждение \"Лицей № 87 имени Л.И.Новиковой\"",26,"призер",null,"Сизова Алла Евгеньевна"]
[4,"Московский","sch22102/edu520807/10/362496",10,10,"Муниципальное автономное общеобразовательное учреждение \"Школа №118 с углубленным изучением отдельных предметов\"",25,"призер",null,"Смирнов Роман Николаевич"]
[5,"Московский","sch22102/edu520733/10/z67289",10,10,"Муниципальное бюджетное общеобразовательное учреждение \"Лицей № 87 имени Л.И.Новиковой\"",23.5,"участник",null,"Сизова Алла Евгеньевна"]
[6,"Московский","sch22102/edu520730/10/7w6q34",10,10,"муниципальное автономное  общеобразовательное учреждение \"Школа № 70 с углубленным изучением отдельных предметов\"",23,"участник",null,"Пестова Ирина Ивановна"]
[7,"Московский","sch22102/edu520730/10/z4vq2w",10,10,"муниципальное автономное  общеобразовательное учреждение \"Школа № 70 с углубленным изучением отдельных предметов\"",23,"участник",null,"Пестова Ирина Ивановна"]
[8,"Московский","sch22102/edu520730/10/848q2w",10,10,"муниципальное автономное  общеобразовательное учреждение \"Школа № 70 с углубленным изучением отдельных предметов\"",22.5,"участник",null,"Пестова Ирина Ивановна"]
[9,"Московский","sch22102/edu520724/10/w7524z",10,10,"Муниципальное бюджетное общеобразовательное учреждение \"Школа № 93\"",22,"участник",null,"Аверьянова Татьяна Витальевна"]
[10,"Московский","sch22102/edu520731/10/rzgzzv",10,10,"Муниципальное автономное  общеобразовательное учреждение \"Школа №74 с углубленным изучением отдельных предметов",22,"участник",null,"Тимофеева Марина Александровна"]
[11,"Московский","sch22102/edu520730/10/7w7q2w",10,10,"муниципальное автономное  общеобразовательное учреждение \"Школа № 70 с углубленным изучением отдельных предметов\"",22,"участник",null,"Пестова Ирина Ивановна"]
[12,"Московский","sch22102/edu520733/10/948239",10,10,"Муниципальное бюджетное общеобразовательное учреждение \"Лицей № 87 имени Л.И.Новиковой\"",22,"участник",null,"Сизова Алла Евгеньевна"]
[13,"Московский","sch22102/edu520733/10/z23229",10,10,"Муниципальное бюджетное общеобразовательное учреждение \"Лицей № 87 имени Л.И.Новиковой\"",22,"участник",null,"Сизова Алла Евгеньевна"]
[14,"Московский","sch22102/edu520733/10/qzg229",10,10,"Муниципальное бюджетное общеобразовательное учреждение \"Лицей № 87 имени Л.И.Новиковой\"",21,"участник",null,"Сизова Алла Евгеньевна"]
[15,"Московский","sch22102/edu523547/10/9gqwvg",10,10,"Муниципальное автономное  общеобразовательное учреждение \"Школа № 172\"",20,"участник",null,"Додина Надежда Леонидовна"]
[16,"Московский","sch22102/edu520731/10/r3z9gv",10,10,"Муниципальное автономное  общеобразовательное учреждение \"Школа №74 с углубленным изучением отдельных предметов",20,"участник",null,"Тимофеева Марина Александровна"]
[17,"Московский","sch22102/edu520730/10/642zr4",10,10,"муниципальное автономное  общеобразовательное учреждение \"Школа № 70 с углубленным изучением отдельных предметов\"",19.5,"участник",null,"Пестова Ирина Ивановна"]
[18,"Московский","sch22102/edu523542/10/4v4gzr",10,10,"Муниципальное бюджетное общеобразовательное учреждение \"Школа № 66\"",19,"участник",null,"Корнилова Ирина Викторовна"]
[19,"Московский","sch22102/edu520729/10/38g665",10,10,"Муниципальное автономное общеобразовательное учреждение \"Школа №178\"",19,"участник",null,"Буханова Евгения Юрьевна"]
[20,"Московский","sch22102/edu520731/10/3r6g7v",10,10,"Муниципальное автономное  общеобразовательное учреждение \"Школа №74 с углубленным изучением отдельных предметов",18.5,"участник",null,"Тимофеева Марина Александровна"]
[21,"Московский","sch22102/edu523542/10/rq6ggv",10,10,"Муниципальное бюджетное общеобразовательное учреждение \"Школа № 66\"",18,"участник",null,"Корнилова Ирина Викторовна"]
[22,"Московский","sch22102/edu520732/10/9g5qwg",10,10,"Муниципальное автономное  общеобразовательное учреждение \"Гимназия №67\"",18,"участник",null,"Борисевич Наталья Викторовна"]
[23,"Московский","sch22102/edu523547/10/9gw96g",10,10,"Муниципальное автономное  общеобразовательное учреждение \"Школа № 172\"",17,"участник",null,"Додина Надежда Леонидовна"]
[24,"Московский","sch22102/edu520724/10/57w3w7",10,10,"Муниципальное бюджетное общеобразовательное учреждение \"Школа № 93\"",17,"участник",null,"Аверьянова Татьяна Витальевна"]
[25,"Московский","sch22102/edu520729/10/7844q8",10,10,"Муниципальное автономное общеобразовательное учреждение \"Школа №178\"",17,"участник",null,"Буханова Евгения Юрьевна"]
[26,"Московский","sch22102/edu520731/10/7rq6qv",10,10,"Муниципальное автономное  общеобразовательное учреждение \"Школа №74 с углубленным изучением отдельных предметов",16,"участник",null,"Тимофеева Марина Александровна"]
[27,"Московский","sch22102/edu520730/10/64g8rw",10,10,"муниципальное автономное  общеобразовательное учреждение \"Школа № 70 с углубленным изучением отдельных предметов\"",16,"участник",null,"Пестова Ирина Ивановна"]
[28,"Московский","sch22102/edu520730/10/94rq2w",10,10,"муниципальное автономное  общеобразовательное учреждение \"Школа № 70 с углубленным изучением отдельных предметов\"",16,"участник",null,"Пестова Ирина Ивановна"]
[29,"Московский","sch22102/edu520730/10/6wzzgw",10,10,"муниципальное автономное  общеобразовательное учреждение \"Школа № 70 с углубленным изучением отдельных предметов\"",16,"участник",null,"Пестова Ирина Ивановна"]
[30,"Московский","sch22102/edu520733/10/9v8g89",10,10,"Муниципальное бюджетное общеобразовательное учреждение \"Лицей № 87 имени Л.И.Новиковой\"",16,"участник",null,"Сизова Алла Евгеньевна"]
[31,"Московский","sch22102/edu520807/10/459826",10,10,"Муниципальное автономное общеобразовательное учреждение \"Школа №118 с углубленным изучением отдельных предметов\"",16,"участник",null,"Смирнов Роман Николаевич"]
[32,"Московский","sch22102/edu520725/10/7v8qw9",10,10,"Муниципальное бюджетное общеобразовательное учреждение \"Школа № 115\"",16,"участник",null,"Травин Михаил Евгеньевич"]
[33,"Московский","sch22102/edu523547/10/4g42vg",10,10,"Муниципальное автономное  общеобразовательное учреждение \"Школа № 172\"",15,"участник",null,"Додина Надежда Леонидовна"]
[34,"Московский","sch22102/edu523547/10/qg7v95",10,10,"Муниципальное автономное  общеобразовательное учреждение \"Школа № 172\"",15,"участник",null,"Додина Надежда Леонидовна"]
[35,"Московский","sch22102/edu520731/10/r8gzwv",10,10,"Муниципальное автономное  общеобразовательное учреждение \"Школа №74 с углубленным изучением отдельных предметов",15,"участник",null,"Тимофеева Марина Александровна"]
[36,"Московский","sch22102/edu520730/10/243rgw",10,10,"муниципальное автономное  общеобразовательное учреждение \"Школа № 70 с углубленным изучением отдельных предметов\"",15,"участник",null,"Пестова Ирина Ивановна"]
[37,"Московский","sch22102/edu520729/10/w597w5",10,10,"Муниципальное автономное общеобразовательное учреждение \"Школа №178\"",15,"участник",null,"Буханова Евгения Юрьевна"]
[38,"Московский","sch22102/edu523542/10/wrz66r",10,10,"Муниципальное бюджетное общеобразовательное учреждение \"Школа № 66\"",14.5,"участник",null,"Корнилова Ирина Викторовна"]
[39,"Московский","sch22102/edu520730/10/8457r4",10,10,"муниципальное автономное  общеобразовательное учреждение \"Школа № 70 с углубленным изучением отдельных предметов\"",14.5,"участник",null,"Пестова Ирина Ивановна"]
[40,"Московский","sch22102/edu523547/10/q52w7g",10,10,"Муниципальное автономное  общеобразовательное учреждение \"Школа № 172\"",14,"участник",null,"Додина Надежда Леонидовна"]
[41,"Московский","sch22102/edu520727/10/7r9q46",10,10,"Муниципальное автономное  общеобразовательное учреждение \"Школа № 149\"",14,"участник",null,"Венецкий Дмитрий Владимирович"]
[42,"Московский","sch22102/edu520727/10/865526",10,10,"Муниципальное автономное  общеобразовательное учреждение \"Школа № 149\"",14,"участник",null,"Венецкий Дмитрий Владимирович"]
[43,"Московский","sch22102/edu520727/10/6z4w26",10,10,"Муниципальное автономное  общеобразовательное учреждение \"Школа № 149\"",14,"участник",null,"Венецкий Дмитрий Владимирович"]
[44,"Московский","sch22102/edu520731/10/v5qg2v",10,10,"Муниципальное автономное  общеобразовательное учреждение \"Школа №74 с углубленным изучением отдельных предметов",14,"участник",null,"Тимофеева Марина Александровна"]
[45,"Московский","sch22102/edu520729/10/824w98",10,10,"Муниципальное автономное общеобразовательное учреждение \"Школа №178\"",14,"участник",null,"Буханова Евгения Юрьевна"]
[46,"Московский","sch22102/edu520729/10/5r7648",10,10,"Муниципальное автономное общеобразовательное учреждение \"Школа №178\"",14,"участник",null,"Буханова Евгения Юрьевна"]
[47,"Московский","sch22102/edu520732/10/649v6g",10,10,"Муниципальное автономное  общеобразовательное учреждение \"Гимназия №67\"",14,"участник",null,"Борисевич Наталья Викторовна"]
[48,"Московский","sch22102/edu520733/10/z7g64z",10,10,"Муниципальное бюджетное общеобразовательное учреждение \"Лицей № 87 имени Л.И.Новиковой\"",13.5,"участник",null,"Сизова Алла Евгеньевна"]
[49,"Московский","sch22102/edu523547/10/7gzq35",10,10,"Муниципальное автономное  общеобразовательное учреждение \"Школа № 172\"",13,"участник",null,"Додина Надежда Леонидовна"]
[50,"Московский","sch22102/edu520722/10/8v249v",10,10,"Муниципальное бюджетное общеобразовательное учреждение \"\"Школа № 69\"",13,"участник",null,"Севирова Валентина Ильинична"]
[51,"Московский","sch22102/edu520730/10/94rz24",10,10,"муниципальное автономное  общеобразовательное учреждение \"Школа № 70 с углубленным изучением отдельных предметов\"",13,"участник",null,"Пестова Ирина Ивановна"]
[52,"Московский","sch22102/edu520729/10/7533q5",10,10,"Муниципальное автономное общеобразовательное учреждение \"Школа №178\"",13,"участник",null,"Буханова Евгения Юрьевна"]
[53,"Московский","sch22102/edu520725/10/z9zqqv",10,10,"Муниципальное бюджетное общеобразовательное учреждение \"Школа № 115\"",13,"участник",null,"Травин Михаил Евгеньевич"]
[54,"Московский","sch22102/edu520733/10/9wv2wz",10,10,"Муниципальное бюджетное общеобразовательное учреждение \"Лицей № 87 имени Л.И.Новиковой\"",12.5,"участник",null,"Сизова Алла Евгеньевна"]
[55,"Московский","sch22102/edu520807/10/968g25",10,10,"Муниципальное автономное общеобразовательное учреждение \"Школа №118 с углубленным изучением отдельных предметов\"",12.5,"участник",null,"Смирнов Роман Николаевич"]
[56,"Московский","sch22102/edu520725/10/93822v",10,10,"Муниципальное бюджетное общеобразовательное учреждение \"Школа № 115\"",12.5,"участник",null,"Травин Михаил Евгеньевич"]
[57,"Московский","sch22102/edu523547/10/qg3845",10,10,"Муниципальное автономное  общеобразовательное учреждение \"Школа № 172\"",12,"участник",null,"Додина Надежда Леонидовна"]
[58,"Московский","sch22102/edu520807/10/46r3v5",10,10,"Муниципальное автономное общеобразовательное учреждение \"Школа №118 с углубленным изучением отдельных предметов\"",12,"участник",null,"Смирнов Роман Николаевич"]
[59,"Московский","sch22102/edu523547/10/3g88zg",10,10,"Муниципальное автономное  общеобразовательное учреждение \"Школа № 172\"",11,"участник",null,"Додина Надежда Леонидовна"]
[60,"Московский","sch22102/edu523542/10/v6437v",10,10,"Муниципальное бюджетное общеобразовательное учреждение \"Школа № 66\"",11,"участник",null,"Корнилова Ирина Викторовна"]
[61,"Московский","sch22102/edu520726/10/q6gg36",10,10,"Муниципальное автономное  общеобразовательное учреждение \"Школа № 139\"",11,"участник",null,"Кривдина Елена Викторовна"]
[62,"Московский","sch22102/edu520719/10/gv625v",10,10,"Муниципальное бюджетное общеобразовательное учреждение \"Школа №64\"",11,"участник",null,"Полежаева Элина Демидовна"]
[63,"Московский","sch22102/edu520730/10/249qq4",10,10,"муниципальное автономное  общеобразовательное учреждение \"Школа № 70 с углубленным изучением отдельных предметов\"",11,"участник",null,"Пестова Ирина Ивановна"]
[64,"Московский","sch22102/edu520807/10/q6g986",10,10,"Муниципальное автономное общеобразовательное учреждение \"Школа №118 с углубленным изучением отдельных предметов\"",11,"участник",null,"Смирнов Роман Николаевич"]
[65,"Московский","sch22102/edu520807/10/w543r6",10,10,"Муниципальное автономное общеобразовательное учреждение \"Школа №118 с углубленным изучением отдельных предметов\"",11,"участник",null,"Смирнов Роман Николаевич"]
[66,"Московский","sch22102/edu520729/10/387635",10,10,"Муниципальное автономное общеобразовательное учреждение \"Школа №178\"",11,"участник",null,"Буханова Евгения Юрьевна"]
[67,"Московский","sch22102/edu520807/10/v67786",10,10,"Муниципальное автономное общеобразовательное учреждение \"Школа №118 с углубленным изучением отдельных предметов\"",10.5,"участник",null,"Баринова Ольга Владимировна"]
[68,"Московский","sch22102/edu520727/10/z6v9g7",10,10,"Муниципальное автономное  общеобразовательное учреждение \"Школа № 149\"",10,"участник",null,"Венецкий Дмитрий Владимирович"]
[69,"Московский","sch22102/edu520731/10/2rwwwr",10,10,"Муниципальное автономное  общеобразовательное учреждение \"Школа №74 с углубленным изучением отдельных предметов",10,"участник",null,"Тимофеева Марина Александровна"]
[70,"Московский","sch22102/edu520807/10/w544r5",10,10,"Муниципальное автономное общеобразовательное учреждение \"Школа №118 с углубленным изучением отдельных предметов\"",10,"участник",null,"Смирнов Роман Николаевич"]
[71,"Московский","sch22102/edu520729/10/8wg668",10,10,"Муниципальное автономное общеобразовательное учреждение \"Школа №178\"",10,"участник",null,"Буханова Евгения Юрьевна"]
[72,"Московский","sch22102/edu520729/10/z5z4z5",10,10,"Муниципальное автономное общеобразовательное учреждение \"Школа №178\"",10,"участник",null,"Буханова Евгения Юрьевна"]
[73,"Московский","sch22102/edu520729/10/38gw68",10,10,"Муниципальное автономное общеобразовательное учреждение \"Школа №178\"",10,"участник",null,"Буханова Евгения Юрьевна"]
[74,"Московский","sch22102/edu520729/10/59w2w5",10,10,"Муниципальное автономное общеобразовательное учреждение \"Школа №178\"",10,"участник",null,"Буханова Евгения Юрьевна"]
[75,"Московский","sch22102/edu520729/10/z5zvz5",10,10,"Муниципальное автономное общеобразовательное учреждение \"Школа №178\"",10,"участник",null,"Буханова Евгения Юрьевна"]
[76,"Московский","sch22102/edu520724/10/q7v96z",10,10,"Муниципальное бюджетное общеобразовательное учреждение \"Школа № 93\"",9,"участник",null,"Аверьянова Татьяна Витальевна"]
[77,"Московский","sch22102/edu520724/10/wzq237",10,10,"Муниципальное бюджетное общеобразовательное учреждение \"Школа № 93\"",9,"участник",null,"Аверьянова Татьяна Витальевна"]
[78,"Московский","sch22102/edu520724/10/3z2r2z",10,10,"Муниципальное бюджетное общеобразовательное учреждение \"Школа № 93\"",9,"участник",null,"Аверьянова Татьяна Витальевна"]
[79,"Московский","sch22102/edu520719/10/3vq684",10,10,"Муниципальное бюджетное общеобразовательное учреждение \"Школа № 64\"",9,"участник",null,"Полежаева Элина Демидовна"]
[80,"Московский","sch22102/edu520729/10/z5qwv5",10,10,"Муниципальное автономное общеобразовательное учреждение \"Школа №178\"",9,"участник",null,"Буханова Евгения Юрьевна"]
[81,"Московский","sch22102/edu520729/10/5vr925",10,10,"Муниципальное автономное общеобразовательное учреждение \"Школа №178\"",9,"участник",null,"Буханова Евгения Юрьевна"]
[82,"Московский","sch22102/edu523542/10/vww3wv",10,10,"Муниципальное бюджетное общеобразовательное учреждение \"Школа № 66\"",8,"участник",null,"Корнилова Ирина Викторовна"]
[83,"Московский","sch22102/edu523542/10/7vgqzv",10,10,"Муниципальное бюджетное общеобразовательное учреждение \"Школа № 66\"",8,"участник",null,"Корнилова Ирина Викторовна"]
[84,"Московский","sch22102/edu520719/10/6488z4",10,10,"Муниципальное бюджетное общеобразовательное учреждение \"Школа № 64\"",8,"участник",null,"Полежаева Элина Демидовна"]
[85,"Московский","sch22102/edu520731/10/rg8q8v",10,10,"Муниципальное автономное  общеобразовательное учреждение \"Школа №74 с углубленным изучением отдельных предметов",8,"участник",null,"Тимофеева Марина Александровна"]
[86,"Московский","sch22102/edu520731/10/v2568r",10,10,"Муниципальное автономное  общеобразовательное учреждение \"Школа №74 с углубленным изучением отдельных предметов",8,"участник",null,"Тимофеева Марина Александровна"]
[87,"Московский","sch22102/edu520807/10/76w9q6",10,10,"Муниципальное автономное общеобразовательное учреждение \"Школа №118 с углубленным изучением отдельных предметов\"",8,"участник",null,"Смирнов Роман Николаевич"]
[88,"Московский","sch22102/edu520729/10/867rw5",10,10,"Муниципальное автономное общеобразовательное учреждение \"Школа №178\"",8,"участник",null,"Буханова Евгения Юрьевна"]
[89,"Московский","sch22102/edu520729/10/782q95",10,10,"Муниципальное автономное общеобразовательное учреждение \"Школа №178\"",8,"участник",null,"Буханова Евгения Юрьевна"]
[90,"Московский","sch22102/edu523547/10/3gr375",10,10,"Муниципальное автономное  общеобразовательное учреждение \"Школа № 172\"",7,"участник",null,"Додина Надежда Леонидовна"]
[91,"Московский","sch22102/edu520731/10/r49zgv",10,10,"Муниципальное автономное  общеобразовательное учреждение \"Школа №74 с углубленным изучением отдельных предметов",7,"участник",null,"Тимофеева Марина Александровна"]
[92,"Московский","sch22102/edu520730/10/vwqq7w",10,10,"муниципальное автономное  общеобразовательное учреждение \"Школа № 70 с углубленным изучением отдельных предметов\"",7,"участник",null,"Пестова Ирина Ивановна"]
[93,"Московский","sch22102/edu520729/10/w8w465",10,10,"Муниципальное автономное общеобразовательное учреждение \"Школа №178\"",7,"участник",null,"Буханова Евгения Юрьевна"]
[94,"Московский","sch22102/edu520719/10/5456zv",10,10,"Муниципальное бюджетное общеобразовательное учреждение \"Школа № 64\"",6,"участник",null,"Полежаева Элина Демидовна"]
[95,"Московский","sch22102/edu520729/10/782298",10,10,"Муниципальное автономное общеобразовательное учреждение \"Школа №178\"",6,"участник",null,"Буханова Евгения Юрьевна"]
[96,"Московский","sch22102/edu520729/10/387z35",10,10,"Муниципальное автономное общеобразовательное учреждение \"Школа №178\"",6,"участник",null,"Буханова Евгения Юрьевна"]
[97,"Московский","sch22102/edu523542/10/v9w72v",10,10,"Муниципальное бюджетное общеобразовательное учреждение \"Школа № 66\"",5,"участник",null,"Корнилова Ирина Викторовна"]
[98,"Московский","sch22102/edu520722/10/zr7gzr",10,10,"Муниципальное бюджетное общеобразовательное учреждение \"\"Школа № 69\"",5,"участник",null,"Севирова Валентина Ильинична"]
[99,"Московский","sch22102/edu520726/10/76z3w5",10,10,"Муниципальное автономное  общеобразовательное учреждение \"Школа № 139\"",5,"участник",null,"Кривдина Елена Викторовна"]
[100,"Московский","sch22102/edu520727/10/r79vr6",10,10,"Муниципальное автономное  общеобразовательное учреждение \"Школа № 149\"",5,"участник",null,"Венецкий Дмитрий Владимирович"]
[101,"Московский","sch22102/edu520727/10/46qv37",10,10,"Муниципальное автономное  общеобразовательное учреждение \"Школа № 149\"",5,"участник",null,"Венецкий Дмитрий Владимирович"]
[102,"Московский","sch22102/edu520729/10/65vwg8",10,10,"Муниципальное автономное общеобразовательное учреждение \"Школа №178\"",5,"участник",null,"Буханова Евгения Юрьевна"]
[103,"Московский","sch22102/edu523542/10/v5wgqv",10,10,"Муниципальное бюджетное общеобразовательное учреждение \"Школа № 66\"",3.5,"участник",null,"Корнилова Ирина Викторовна"]
[104,"Московский","sch22102/edu520729/10/5zr9z5",10,10,"Муниципальное автономное общеобразовательное учреждение \"Школа №178\"",3,"участник",null,"Буханова Евгения Юрьевна"]
[105,"Московский","sch22102/edu520727/10/v6wvq7",10,10,"Муниципальное автономное  общеобразовательное учреждение \"Школа № 149\"",2,"участник",null,"Венецкий Дмитрий Владимирович"]
[106,"Московский","sch22102/edu520729/10/v869w5",10,10,"Муниципальное автономное общеобразовательное учреждение \"Школа №178\"",2,"участник",null,"Буханова Евгения Юрьевна"]
[107,"Московский","sch22102/edu523542/10/4r386v",10,10,"Муниципальное бюджетное общеобразовательное учреждение \"Школа № 66\"",0,"участник",null,"Корнилова Ирина Викторовна"]
[108,"Московский","sch22102/edu520729/10/65vq28",10,10,"Муниципальное автономное общеобразовательное учреждение \"Школа №178\"",0,"участник",null,"Буханова Евгения Юрьевна"]
[109,"Московский","sch22102/edu520729/10/753gq5",10,10,"Муниципальное автономное общеобразовательное учреждение \"Школа №178\"",0,"участник",null,"Буханова Евгения Юрьевна"]

{"sheet":"Химия 11","index":3,"n_rows":101,"n_cols":11,"rows_kept":101,"cut":false,"hidden":false,"merged":[[2,0,2,1]]}
[null,null,null,"Итоговый протокол результатов школьного этапа Олимпиады по  ХИМИИ 11 класс"]
[]
["максимальный балл ",null,50]
["№ п/п","Муниципалитет","Шифр (код) выданный ребенку","класс обучается","класс выступает","ОО, в которой обучается (полное название по УСТАВУ)","Количество набранных баллов","Статус","Победитель/призер МЭ 2020-2021 (статус)*","ФИО учителя (наставника)","ФИО учителя (наставника)**"]
[1,{"$f":"$B$5","v":"Московский"},"sch22112/edu520732/11/74q394",11,11,"Муниципальное автономное  общеобразовательное учреждение \"Гимназия №67\"",40,"победитель",null,"Клокова Татьяна Александровна"]
[2,"Московский","sch22112/edu520730/11/9zrgr8",11,11,"муниципальное автономное  общеобразовательное учреждение \"Школа № 70 с углубленным изучением отдельных предметов\"",33.5,"призер",null,"Пестова Ирина Ивановна"]
[3,"Московский","sch22112/edu520730/11/584258",11,11,"муниципальное автономное  общеобразовательное учреждение \"Школа № 70 с углубленным изучением отдельных предметов\"",32.5,"призер",null,"Пестова Ирина Ивановна"]
[4,"Московский","sch22112/edu520730/11/786wwz",11,11,"муниципальное автономное  общеобразовательное учреждение \"Школа № 70 с углубленным изучением отдельных предметов\"",29.5,"призер",null,"Пестова Ирина Ивановна"]
[5,"Московский","sch22112/edu520807/11/56v3r5",11,11,"Муниципальное автономное общеобразовательное учреждение \"Школа №118 с углубленным изучением отдельных предметов\"",28.5,"призер",null,"Баринова Ольга Владимировна"]
[6,"Московский","sch22112/edu520733/11/2zq864",11,11,"Муниципальное бюджетное общеобразовательное учреждение \"Лицей № 87 имени Л.И.Новиковой\"",28.5,"призер",null,"Сизова Алла Евгеньевна"]
[7,"Московский","sch22112/edu520730/11/6zggvz",11,11,"муниципальное автономное  общеобразовательное учреждение \"Школа № 70 с углубленным изучением отдельных предметов\"",27,"призер",null,"Пестова Ирина Ивановна"]
[8,"Московский","sch22112/edu523547/11/759857",11,11,"Муниципальное автономное  общеобразовательное учреждение \"Школа № 172",26.5,"призер",null,"Додина Надежда Леонидовна"]
[9,{"$f":"$B$5","v":"Московский"},"sch22112/edu520723/11/qgz4rg",11,11,"Муниципальное бюджетное общеобразовательное учреждение \"Школа № 73\"",26.5,"призер","победитель","Васильева Елена Валерьевна"]
[10,"Московский","sch22112/edu520730/11/6z2q98",11,11,"муниципальное автономное  общеобразовательное учреждение \"Школа № 70 с углубленным изучением отдельных предметов\"",26,"призер",null,"Пестова Ирина Ивановна"]
[11,"Московский","sch22112/edu523542/11/424zz2",11,11,"Муниципальное бюджетное общеобразовательное учреждение \"Школа № 66\"",25.5,"призер",null,"Корнилова Ирина Викторовна"]
[12,"Московский","sch22112/edu523547/11/72w9vg",11,11,"Муниципальное автономное  общеобразовательное учреждение \"Школа № 172",25,"призер",null,"Додина Надежда Леонидовна"]
[13,"Московский","sch22112/edu520733/11/743q54",11,11,"Муниципальное бюджетное общеобразовательное учреждение \"Лицей № 87 имени Л.И.Новиковой\"",24.5,"участник",null,"Сизова Алла Евгеньевна"]
[14,"Московский","sch22112/edu523542/11/62vr32",11,11,"Муниципальное бюджетное общеобразовательное учреждение \"Школа № 66\"",24,"участник",null,"Корнилова Ирина Викторовна"]
[15,"Московский","sch22112/edu520730/11/78q46z",11,11,"муниципальное автономное  общеобразовательное учреждение \"Школа № 70 с углубленным изучением отдельных предметов\"",24,"участник",null,"Пестова Ирина Ивановна"]
[16,"Московский","sch22112/edu520733/11/w4r274",11,11,"Муниципальное бюджетное общеобразовательное учреждение \"Лицей № 87 имени Л.И.Новиковой\"",23.5,"участник",null,"Сизова Алла Евгеньевна"]
[17,"Московский","sch22112/edu520807/11/5gr8v9",11,11,"Муниципальное автономное общеобразовательное учреждение \"Школа №118 с углубленным изучением отдельных предметов\"",23.5,"участник",null,"Баринова Ольга Владимировна"]
[18,"Московский","sch22112/edu520807/11/57rzz9",11,11,"Муниципальное автономное общеобразовательное учреждение \"Школа №118 с углубленным изучением отдельных предметов\"",23,"участник",null,"Баринова Ольга Владимировна"]
[19,"Московский","sch22112/edu520733/11/vzwgwz",11,11,"Муниципальное бюджетное общеобразовательное учреждение \"Лицей № 87 имени Л.И.Новиковой\"",22.5,"участник",null,"Сизова Алла Евгеньевна"]
[20,"Московский","sch22112/edu520731/11/82563v",11,11,"Муниципальное автономное  общеобразовательное учреждение \"Школа №74 с углубленным изучением отдельных предметов",22,"участник",null,"Тимофеева Марина Александровна"]
[21,"Московский","sch22112/edu520730/11/r8wqg8",11,11,"муниципальное автономное  общеобразовательное учреждение \"Школа № 70 с углубленным изучением отдельных предметов\"",21.5,"участник",null,"Пестова Ирина Ивановна"]
[22,"Московский","sch22112/edu523542/11/62vrv2",11,11,"Муниципальное бюджетное общеобразовательное учреждение \"Школа № 66\"",20.5,"участник",null,"Корнилова Ирина Викторовна"]
[23,"Московский","sch22112/edu520729/11/28q928",11,11,"Муниципальное автономное общеобразовательное учреждение \"Школа №178\"",20.5,"участник",null,"Буханова Евгения Юрьевна"]
[24,"Московский","sch22112/edu520730/11/7874wz",11,11,"муниципальное автономное  общеобразовательное учреждение \"Школа № 70 с углубленным изучением отдельных предметов\"",20,"участник",null,"Пестова Ирина Ивановна"]
[25,"Московский","sch22112/edu523542/11/72gvr9",11,11,"Муниципальное бюджетное общеобразовательное учреждение \"Школа № 66\"",19.5,"участник",null,"Корнилова Ирина Викторовна"]
[26,"Московский","sch22112/edu523542/11/493369",11,11,"Муниципальное бюджетное общеобразовательное учреждение \"Школа № 66\"",19.5,"участник",null,"Корнилова Ирина Викторовна"]
[27,"Московский","sch22112/edu523542/11/v253z2",11,11,"Муниципальное бюджетное общеобразовательное учреждение \"Школа № 66\"",19,"участник",null,"Корнилова Ирина Викторовна"]
[28,"Московский","sch22112/edu520731/11/v5qgrv",11,11,"Муниципальное автономное  общеобразовательное учреждение \"Школа №74 с углубленным изучением отдельных предметов",18,"участник",null,"Тимофеева Марина Александровна"]
[29,"Московский","sch22112/edu523542/11/q26r72",11,11,"Муниципальное бюджетное общеобразовательное учреждение \"Школа № 66\"",17.5,"участник",null,"Корнилова Ирина Викторовна"]
[30,"Московский","sch22112/edu520729/11/68vwg5",11,11,"Муниципальное автономное общеобразовательное учреждение \"Школа №178\"",17.5,"участник",null,"Буханова Евгения Юрьевна"]
[31,"Московский","sch22112/edu523542/11/493472",11,11,"Муниципальное бюджетное общеобразовательное учреждение \"Школа № 66\"",15.5,"участник",null,"Корнилова Ирина Викторовна"]
[32,"Московский","sch22112/edu520719/11/gv7gqv",11,11,"Муниципальное бюджетное общеобразовательное учреждение «Школа № 64»",15.5,"участник",null,"Полежаева Элина Демидовна"]
[33,"Московский","sch22112/edu520730/11/2z37vz",11,11,"муниципальное автономное  общеобразовательное учреждение \"Школа № 70 с углубленным изучением отдельных предметов\"",15.5,"участник",null,"Пестова Ирина Ивановна"]
[34,"Московский","sch22112/edu520807/11/94w275",11,11,"Муниципальное автономное общеобразовательное учреждение \"Школа №118 с углубленным изучением отдельных предметов\"",15.5,"участник",null,"Баринова Ольга Владимировна"]
[35,"Московский","sch22112/edu520731/11/r8www8",11,11,"Муниципальное автономное  общеобразовательное учреждение \"Школа №74 с углубленным изучением отдельных предметов",15,"участник",null,"Тимофеева Марина Александровна"]
[36,"Московский","sch22112/edu520730/11/78q66z",11,11,"муниципальное автономное  общеобразовательное учреждение \"Школа № 70 с углубленным изучением отдельных предметов\"",15,"участник",null,"Пестова Ирина Ивановна"]
[37,"Московский","sch22112/edu523547/11/749v5g",11,11,"Муниципальное автономное  общеобразовательное учреждение \"Школа № 172",14.5,"участник",null,"Додина Надежда Леонидовна"]
[38,"Московский","sch22112/edu520733/11/749354",11,11,"Муниципальное бюджетное общеобразовательное учреждение \"Лицей № 87 имени Л.И.Новиковой\"",14.5,"участник",null,"Сизова Алла Евгеньевна"]
[39,"Московский","sch22112/edu523542/11/5988v9",11,11,"Муниципальное бюджетное общеобразовательное учреждение \"Школа № 66\"",14,"участник",null,"Корнилова Ирина Викторовна"]
[40,"Московский","sch22112/edu523542/11/w9zg62",11,11,"Муниципальное бюджетное общеобразовательное учреждение \"Школа № 66\"",13.5,"участник",null,"Корнилова Ирина Викторовна"]
[41,{"$f":"$B$5","v":"Московский"},"sch22112/edu523542/11/598859",11,11,"Муниципальное бюджетное общеобразовательное учреждение \"Школа № 66\"",13.5,"участник",null,"Корнилова Ирина Викторовна"]
[42,"Московский","sch22112/edu520727/11/v8w3q8",11,11,"Муниципальное автономное  общеобразовательное учреждение \"Школа № 149\"",13.5,"участник",null,"Венецкий Дмитрий Владимирович"]
[43,"Московский","sch22112/edu520727/11/3844r8",11,11,"Муниципальное автономное  общеобразовательное учреждение \"Школа № 149\"",13,"участник",null,"Венецкий Дмитрий Владимирович"]
[44,"Московский","sch22112/edu520730/11/zrr5rz",11,11,"муниципальное автономное  общеобразовательное учреждение \"Школа № 70 с углубленным изучением отдельных предметов\"",13,"участник",null,"Пестова Ирина Ивановна"]
[45,"Московский","sch22112/edu523542/11/w9zww2",11,11,"Муниципальное бюджетное общеобразовательное учреждение \"Школа № 66\"",12.5,"участник",null,"Корнилова Ирина Викторовна"]
[46,"Московский","sch22112/edu520727/11/78vggz",11,11,"Муниципальное автономное  общеобразовательное учреждение \"Школа № 149\"",12,"участник",null,"Венецкий Дмитрий Владимирович"]
[47,"Московский","sch22112/edu520724/11/5zw654",11,11,"Муниципальное бюджетноеобщеобразовательное учреждение \"Школа №93\"",12,"участник",null,"Аверьянова Татьяна Витальевна"]
[48,"Московский","sch22112/edu520724/11/7z972z",11,11,"Муниципальное бюджетноеобщеобразовательное учреждение \"Школа №93\"",12,"участник",null,"Аверьянова Татьяна Витальевна"]
[49,"Московский","sch22112/edu520731/11/8zgzzv",11,11,"Муниципальное автономное  общеобразовательное учреждение \"Школа №74 с углубленным изучением отдельных предметов",12,"участник",null,"Тимофеева Марина Александровна"]
[50,"Московский","sch22112/edu520731/11/vrg498",11,11,"Муниципальное автономное  общеобразовательное учреждение \"Школа №74 с углубленным изучением отдельных предметов",12,"участник",null,"Тимофеева Марина Александровна"]
[51,"Московский","sch22112/edu520730/11/4zv2qz",11,11,"муниципальное автономное  общеобразовательное учреждение \"Школа № 70 с углубленным изучением отдельных предметов\"",12,"участник",null,"Пестова Ирина Ивановна"]
[52,"Московский","sch22112/edu520722/11/z47rzv",11,11,"Муниципальное бюджетное общеобразовательное учреждение \"\"Школа № 69\"",11.5,"участник",null,"Севирова Валентина Ильинична"]
[53,"Московский","sch22112/edu520733/11/w45gq4",11,11,"Муниципальное бюджетное общеобразовательное учреждение \"Лицей № 87 имени Л.И.Новиковой\"",11.5,"участник",null,"Сизова Алла Евгеньевна"]
[54,"Московский","sch22112/edu523542/11/79qqg9",11,11,"Муниципальное бюджетное общеобразовательное учреждение \"Школа № 66\"",11,"участник",null,"Корнилова Ирина Викторовна"]
[55,"Московский","sch22112/edu520727/11/rzgg4z",11,11,"Муниципальное автономное  общеобразовательное учреждение \"Школа № 149\"",11,"участник",null,"Венецкий Дмитрий Владимирович"]
[56,"Московский","sch22112/edu520730/11/2z992z",11,11,"муниципальное автономное  общеобразовательное учреждение \"Школа № 70 с углубленным изучением отдельных предметов\"",11,"участник",null,"Пестова Ирина Ивановна"]
[57,"Московский","sch22112/edu520723/11/682w5g",11,11,"Муниципальное бюджетное общеобразовательное учреждение \"Школа № 73\"",11,"участник",null,"Васильева Елена Валерьевна"]
[58,"Московский","sch22112/edu520723/11/984r68",11,11,"Муниципальное бюджетное общеобразовательное учреждение \"Школа № 73\"",11,"участник",null,"Васильева Елена Валерьевна"]
[59,"Московский","sch22112/edu520729/11/782g25",11,11,"Муниципальное автономное общеобразовательное учреждение \"Школа №178\"",10.5,"участник",null,"Буханова Евгения Юрьевна"]
[60,"Московский","sch22112/edu520724/11/qz8g64",11,11,"Муниципальное бюджетноеобщеобразовательное учреждение \"Школа №93\"",9.5,"участник",null,"Аверьянова Татьяна Витальевна"]
[61,"Московский","sch22112/edu520730/11/zv96q8",11,11,"муниципальное автономное  общеобразовательное учреждение \"Школа № 70 с углубленным изучением отдельных предметов\"",9.5,"участник",null,"Пестова Ирина Ивановна"]
[62,"Московский","sch22112/edu520733/11/qzg224",11,11,"Муниципальное бюджетное общеобразовательное учреждение \"Лицей № 87 имени Л.И.Новиковой\"",9.5,"участник",null,"Сизова Алла Евгеньевна"]
[63,"Московский","sch22112/edu523542/11/q26r52",11,11,"Муниципальное бюджетное общеобразовательное учреждение \"Школа № 66\"",9,"участник",null,"Корнилова Ирина Викторовна"]
[64,"Московский","sch22112/edu520726/11/w5v992",11,11,"Муниципальное автономное общеобразовательное учреждение \"Школа № 139\"",9,"участник",null,"Кривдина Елена Викторовна","Кривдина Елена Викторовна"]
[65,"Московский","sch22112/edu520727/11/68542z",11,11,"Муниципальное автономное  общеобразовательное учреждение \"Школа № 149\"",9,"участник",null,"Венецкий Дмитрий Владимирович"]
[66,"Московский","sch22112/edu520719/11/zvz25v",11,11,"Муниципальное бюджетное общеобразовательное учреждение «Школа № 64»",9,"участник",null,"Полежаева Элина Демидовна"]
[67,"Московский","sch22112/edu520729/11/25zwr8",11,11,"Муниципальное автономное общеобразовательное учреждение \"Школа №178\"",8.5,"участник",null,"Буханова Евгения Юрьевна"]
[68,"Московский","sch22112/edu523542/11/r9r762",11,11,"Муниципальное бюджетное общеобразовательное учреждение \"Школа № 66\"",8,"участник",null,"Корнилова Ирина Викторовна"]
[69,"Московский","sch22112/edu520727/11/4zr2wz",11,11,"Муниципальное автономное  общеобразовательное учреждение \"Школа № 149\"",8,"участник",null,"Венецкий Дмитрий Владимирович"]
[70,"Московский","sch22112/edu520730/11/r8wqg8",11,11,"муниципальное автономное  общеобразовательное учреждение \"Школа № 70 с углубленным изучением отдельных предметов\"",8,"участник",null,"Пестова Ирина Ивановна"]
[71,"Московский","sch22112/edu520729/11/782gw5",11,11,"Муниципальное автономное общеобразовательное учреждение \"Школа №178\"",8,"участник",null,"Буханова Евгения Юрьевна"]
[72,"Московский","sch22112/edu523542/11/r97r32",11,11,"Муниципальное бюджетное общеобразовательное учреждение \"Школа № 66\"",7.5,"участник",null,"Корнилова Ирина Викторовна"]
[73,{"$f":"$B$5","v":"Московский"},"sch22112/edu520730/11/zg2vv8",11,11,"муниципальное автономное  общеобразовательное учреждение \"Школа № 70 с углубленным изучением отдельных предметов\"",7,"участник",null,"Пестова Ирина Ивановна"]
[74,"Московский","sch22112/edu520730/11/7875w8",11,11,"муниципальное автономное  общеобразовательное учреждение \"Школа № 70 с углубленным изучением отдельных предметов\"",7,"участник",null,"Пестова Ирина Ивановна"]
[75,"Московский","sch22112/edu523542/11/r9r7z2",11,11,"Муниципальное бюджетное общеобразовательное учреждение \"Школа № 66\"",6.5,"участник",null,"Корнилова Ирина Викторовна"]
[76,"Московский","sch22112/edu523542/11/72wqg2",11,11,"Муниципальное бюджетное общеобразовательное учреждение \"Школа № 66\"",6.5,"участник",null,"Корнилова Ирина Викторовна"]
[77,"Московский","sch22112/edu520731/11/83z9gv",11,11,"Муниципальное автономное  общеобразовательное учреждение \"Школа №74 с углубленным изучением отдельных предметов",6.5,"участник",null,"Тимофеева Марина Александровна"]
[78,"Московский","sch22112/edu520726/11/429875",11,11,"Муниципальное автономное общеобразовательное учреждение \"Школа № 139\"",6,"участник",null,"Кривдина Елена Викторовна","Кривдина Елена Викторовна"]
[79,"Московский","sch22112/edu520731/11/8g2q2v",11,11,"Муниципальное автономное  общеобразовательное учреждение \"Школа №74 с углубленным изучением отдельных предметов",6,"участник",null,"Тимофеева Марина Александровна"]
[80,"Московский","sch22112/edu520730/11/6z2w98",11,11,"муниципальное автономное  общеобразовательное учреждение \"Школа № 70 с углубленным изучением отдельных предметов\"",6,"участник",null,"Пестова Ирина Ивановна"]
[81,"Московский","sch22112/edu520807/11/58q3q9",11,11,"Муниципальное автономное общеобразовательное учреждение \"Школа №118 с углубленным изучением отдельных предметов\"",6,"участник",null,"Смирнов Роман Николаевич"]
[82,"Московский","sch22112/edu523542/11/72g6z9",11,11,"Муниципальное бюджетное общеобразовательное учреждение \"Школа № 66\"",5.5,"участник",null,"Корнилова Ирина Викторовна"]
[83,"Московский","sch22112/edu520726/11/24w445",11,11,"Муниципальное автономное общеобразовательное учреждение \"Школа № 139\"",5.5,"участник",null,"Кривдина Елена Викторовна","Кривдина Елена Викторовна"]
[84,"Московский","sch22112/edu520726/11/24w445",11,11,"Муниципальное автономное общеобразовательное учреждение \"Школа № 139\"",5,"участник",null,"Кривдина Елена Викторовна","Кривдина Елена Викторовна"]
[85,"Московский","sch22112/edu520727/11/28349z",11,11,"Муниципальное автономное  общеобразовательное учреждение \"Школа № 149\"",5,"участник",null,"Венецкий Дмитрий Владимирович"]
[86,"Московский","sch22112/edu520730/11/z59g3z",11,11,"муниципальное автономное  общеобразовательное учреждение \"Школа № 70 с углубленным изучением отдельных предметов\"",5,"участник",null,"Пестова Ирина Ивановна"]
[87,"Московский","sch22112/edu520727/11/rz94r8",11,11,"Муниципальное автономное  общеобразовательное учреждение \"Школа № 149\"",4.5,"участник",null,"Венецкий Дмитрий Владимирович"]
[88,"Московский","sch22112/edu520722/11/rv977v",11,11,"Муниципальное бюджетное общеобразовательное учреждение \"\"Школа № 69\"",4,"участник",null,"Севирова Валентина Ильинична"]
[89,"Московский","sch22112/edu520730/11/84g95z",11,11,"муниципальное автономное  общеобразовательное учреждение \"Школа № 70 с углубленным изучением отдельных предметов\"",4,"участник",null,"Пестова Ирина Ивановна"]
[90,"Московский","sch22112/edu520730/11/wz5q3z",11,11,"муниципальное автономное  общеобразовательное учреждение \"Школа № 70 с углубленным изучением отдельных предметов\"",4,"участник",null,"Пестова Ирина Ивановна"]
[91,"Московский","sch22112/edu520727/11/48q538",11,11,"Муниципальное автономное  общеобразовательное учреждение \"Школа № 149\"",3.5,"участник",null,"Венецкий Дмитрий Владимирович"]
[92,"Московский","sch22112/edu520729/11/754gg8",11,11,"Муниципальное автономное общеобразовательное учреждение \"Школа №178\"",3.5,"участник",null,"Буханова Евгения Юрьевна"]
[93,"Московский","sch22112/edu520731/11/849zgv",11,11,"Муниципальное автономное  общеобразовательное учреждение \"Школа №74 с углубленным изучением отдельных предметов",3,"участник",null,"Тимофеева Марина Александровна"]
[94,"Московский","sch22112/edu520733/11/zwv2w4",11,11,"Муниципальное бюджетное общеобразовательное учреждение \"Лицей № 87 имени Л.И.Новиковой\"",2,"участник",null,"Сизова Алла Евгеньевна"]
[95,"Московский","sch22112/edu520807/11/52qr89",11,11,"Муниципальное автономное общеобразовательное учреждение \"Школа №118 с углубленным изучением отдельных предметов\"",2,"участник",null,"Баринова Ольга Владимировна"]
[96,"Московский","sch22112/edu520730/11/wz5438",11,11,"муниципальное автономное  общеобразовательное учреждение \"Школа № 70 с углубленным изучением отдельных предметов\"",0,"участник",null,"Пестова Ирина Ивановна"]
[97,"Московский","sch22112/edu520723/11/z87q78",11,11,"Муниципальное бюджетное общеобразовательное учреждение \"Школа № 73\"",0,"участник",null,"Васильева Елена Валерьевна"]